﻿Body Name,Supp ID,,Supplier Name,Service Area Category,Supp Grp,Period,Invoice Date,TT,Unique Invoice reference,,Inv Amount,Account,Expenditure Description,Cost C,Cost Centre Name,Posted Amount,
Nottinghamshire fire and Rescue Service,103696,Rebel Recruitment Limited,Rebel Recruitment Limited,Management & Support Services,5,202409,11/10/2023,P6,9109350,-960.00 ,960.00 ,1005,Admin Agency Staff,2097,ICT Service Operations,800.00 ,
Nottinghamshire fire and Rescue Service,103958,Lithium3 Technology Recruitment Limited,Lithium3 Technology Recruitment Limited,Management & Support Services,5,202409,29/11/2023,P6,9109351,"-1,140.00 ","1,140.00 ",1005,Admin Agency Staff,2097,ICT Service Operations,950.00 ,
Nottinghamshire fire and Rescue Service,103696,Rebel Recruitment Limited,Rebel Recruitment Limited,Management & Support Services,5,202409,01/12/2023,P6,9109368,-960.00 ,960.00 ,1005,Admin Agency Staff,2097,ICT Service Operations,800.00 ,
Nottinghamshire fire and Rescue Service,101001,Express Recruitment Ltd,Express Recruitment Ltd,Management & Support Services,1,202409,29/11/2023,P6,9109396,-665.11 ,665.11 ,1005,Admin Agency Staff,2070,Strategic Support,554.26 ,
Nottinghamshire fire and Rescue Service,101001,Express Recruitment Ltd,Express Recruitment Ltd,Management & Support Services,1,202409,29/11/2023,P6,9109398,-818.56 ,818.56 ,1005,Admin Agency Staff,2075,Service Support Hub,682.13 ,
Nottinghamshire fire and Rescue Service,104292,Macildowie Associates Ltd,Macildowie Associates Ltd,Management & Support Services,5,202409,03/12/2023,P6,9109405,-835.38 ,835.38 ,1005,Admin Agency Staff,2058,HR Support,696.15 ,
Nottinghamshire fire and Rescue Service,103958,Lithium3 Technology Recruitment Limited,Lithium3 Technology Recruitment Limited,Management & Support Services,5,202409,30/11/2023,P6,9109417,"-5,016.00 ","5,016.00 ",1005,Admin Agency Staff,2097,ICT Service Operations,"4,180.00 ",
Nottinghamshire fire and Rescue Service,103958,Lithium3 Technology Recruitment Limited,Lithium3 Technology Recruitment Limited,Management & Support Services,5,202409,06/12/2023,P6,9109423,-684.00 ,684.00 ,1005,Admin Agency Staff,2097,ICT Service Operations,570.00 ,
Nottinghamshire fire and Rescue Service,103696,Rebel Recruitment Limited,Rebel Recruitment Limited,Management & Support Services,5,202409,08/12/2023,P6,9109461,-960.00 ,960.00 ,1005,Admin Agency Staff,2097,ICT Service Operations,800.00 ,
Nottinghamshire fire and Rescue Service,101001,Express Recruitment Ltd,Express Recruitment Ltd,Management & Support Services,1,202409,06/12/2023,P6,9109468,-832.47 ,832.47 ,1005,Admin Agency Staff,2070,Strategic Support,693.72 ,
Nottinghamshire fire and Rescue Service,103874,Reflect Recruitment Group Limited,Reflect Recruitment Group Limited,Management & Support Services,5,202409,27/11/2023,P6,9109469,-943.06 ,943.06 ,1005,Admin Agency Staff,2058,HR Support,785.88 ,
Nottinghamshire fire and Rescue Service,103874,Reflect Recruitment Group Limited,Reflect Recruitment Group Limited,Management & Support Services,5,202409,04/12/2023,P6,9109475,-917.57 ,917.57 ,1005,Admin Agency Staff,2058,HR Support,764.64 ,
Nottinghamshire fire and Rescue Service,103696,Rebel Recruitment Limited,Rebel Recruitment Limited,Management & Support Services,5,202409,11/10/2023,P6,9109476,-768.00 ,768.00 ,1005,Admin Agency Staff,2097,ICT Service Operations,640.00 ,
Nottinghamshire fire and Rescue Service,103696,Rebel Recruitment Limited,Rebel Recruitment Limited,Management & Support Services,5,202409,01/12/2023,P6,9109477,-960.00 ,960.00 ,1005,Admin Agency Staff,2097,ICT Service Operations,800.00 ,
Nottinghamshire fire and Rescue Service,103371,Nottinghamshire Healthcare NHS Trust,Nottinghamshire Healthcare NHS Trust,Management & Support Services,5,202409,21/11/2023,P6,9109485,"-3,315.68 ","3,315.68 ",1005,Admin Agency Staff,2068,Prevention,"3,315.68 ",
Nottinghamshire fire and Rescue Service,103371,Nottinghamshire Healthcare NHS Trust,Nottinghamshire Healthcare NHS Trust,Management & Support Services,5,202409,21/11/2023,P6,9109486,"-4,827.17 ","4,827.17 ",1005,Admin Agency Staff,2068,Prevention,"4,827.17 ",
Nottinghamshire fire and Rescue Service,101001,Express Recruitment Ltd,Express Recruitment Ltd,Management & Support Services,1,202409,06/12/2023,P6,9109503,-818.56 ,818.56 ,1005,Admin Agency Staff,2075,Service Support Hub,682.13 ,
Nottinghamshire fire and Rescue Service,104292,Macildowie Associates Ltd,Macildowie Associates Ltd,Management & Support Services,5,202409,10/12/2023,P6,9109520,-642.60 ,642.60 ,1005,Admin Agency Staff,2058,HR Support,535.50 ,
Nottinghamshire fire and Rescue Service,103958,Lithium3 Technology Recruitment Limited,Lithium3 Technology Recruitment Limited,Management & Support Services,5,202409,13/12/2023,P6,9109522,"-1,140.00 ","1,140.00 ",1005,Admin Agency Staff,2097,ICT Service Operations,950.00 ,
Nottinghamshire fire and Rescue Service,103696,Rebel Recruitment Limited,Rebel Recruitment Limited,Management & Support Services,5,202409,14/12/2023,P6,9109547,-768.00 ,768.00 ,1005,Admin Agency Staff,2097,ICT Service Operations,640.00 ,
Nottinghamshire fire and Rescue Service,101001,Express Recruitment Ltd,Express Recruitment Ltd,Management & Support Services,1,202409,13/12/2023,P6,9109548,-832.47 ,832.47 ,1005,Admin Agency Staff,2070,Strategic Support,693.72 ,
Nottinghamshire fire and Rescue Service,101001,Express Recruitment Ltd,Express Recruitment Ltd,Management & Support Services,1,202409,13/12/2023,P6,9109552,-818.56 ,818.56 ,1005,Admin Agency Staff,2075,Service Support Hub,682.13 ,
Nottinghamshire fire and Rescue Service,101001,Express Recruitment Ltd,Express Recruitment Ltd,Management & Support Services,1,202409,20/12/2023,P6,9109646,-832.47 ,832.47 ,1005,Admin Agency Staff,2070,Strategic Support,693.72 ,
Nottinghamshire fire and Rescue Service,103958,Lithium3 Technology Recruitment Limited,Lithium3 Technology Recruitment Limited,Management & Support Services,5,202409,20/12/2023,P6,9109647,"-1,140.00 ","1,140.00 ",1005,Admin Agency Staff,2097,ICT Service Operations,950.00 ,
Nottinghamshire fire and Rescue Service,101001,Express Recruitment Ltd,Express Recruitment Ltd,Management & Support Services,1,202409,20/12/2023,P6,9109649,-829.46 ,829.46 ,1005,Admin Agency Staff,2075,Service Support Hub,691.22 ,
Nottinghamshire fire and Rescue Service,104017,K Lamb Associates Limited,K Lamb Associates Limited,Operational Responses,5,202409,29/11/2023,P6,9109336,"-7,500.00 ","7,500.00 ",1801,Training,2013,Service Delivery,"6,250.00 ",
Nottinghamshire fire and Rescue Service,104061,Everbright Lodge Limited T/A The Wild Pheasant Hotel and Spa,Everbright Lodge Limited T/A The Wild Pheasant Hotel and Spa,Management & Support Services,5,202409,15/11/2023,P6,9109341,-863.60 ,863.60 ,1801,Training,2059,Corporate Training,863.60 ,
Nottinghamshire fire and Rescue Service,100019,Nuffield Sailing Centre,Nuffield Sailing Centre,Management & Support Services,1,202409,30/11/2023,P6,9109353,-880.00 ,880.00 ,1801,Training,2059,Corporate Training,40.00 ,
Nottinghamshire fire and Rescue Service,100178,Skills For Justice,Skills For Justice,Management & Support Services,1,202409,30/11/2023,P6,9109358,-333.00 ,333.00 ,1801,Training,2059,Corporate Training,333.00 ,
Nottinghamshire fire and Rescue Service,102123,The Institution Of Fire Engineers,The Institution Of Fire Engineers,Management & Support Services,1,202409,05/12/2023,P6,9109412,-474.00 ,474.00 ,1801,Training,2059,Corporate Training,474.00 ,
Nottinghamshire fire and Rescue Service,101847,The Outreach Organisation Limited,The Outreach Organisation Limited,Management & Support Services,1,202409,05/12/2023,P6,9109424,"-1,674.00 ","1,674.00 ",1801,Training,2059,Corporate Training,"1,395.00 ",
Nottinghamshire fire and Rescue Service,101847,The Outreach Organisation Limited,The Outreach Organisation Limited,Operational Responses,1,202409,05/12/2023,P6,9109425,"-1,866.00 ","1,866.00 ",1801,Training,2074,Operational Training,"1,555.00 ",
Nottinghamshire fire and Rescue Service,104318,The Actors Workshop Nottingham & Online,The Actors Workshop Nottingham & Online,Management & Support Services,10,202409,06/11/2023,P6,9109441,"-1,200.00 ","1,200.00 ",1801,Training,2073,Assurance and Risk,"1,000.00 ",
Nottinghamshire fire and Rescue Service,103277,Actorshop Training Associates,Actorshop Training Associates,Management & Support Services,5,202409,08/12/2023,P6,9109457,-855.00 ,855.00 ,1801,Training,2054,Equalities Team,855.00 ,
Nottinghamshire fire and Rescue Service,101847,The Outreach Organisation Limited,The Outreach Organisation Limited,Management & Support Services,1,202409,05/12/2023,P6,9109484,"-3,348.00 ","3,348.00 ",1801,Training,2059,Corporate Training,"1,395.00 ",
Nottinghamshire fire and Rescue Service,102123,The Institution Of Fire Engineers,The Institution Of Fire Engineers,Management & Support Services,1,202409,05/12/2023,P6,9109508,-628.00 ,628.00 ,1801,Training,2059,Corporate Training,625.93 ,
Nottinghamshire fire and Rescue Service,103197,Legal Experience Training Limited,Legal Experience Training Limited,Prevention and Education ,5,202409,11/12/2023,P6,9109510,"-1,444.14 ","1,444.14 ",1801,Training,2026,Fire Investigation,"1,203.45 ",
Nottinghamshire fire and Rescue Service,104017,K Lamb Associates Limited,K Lamb Associates Limited,Management & Support Services,5,202409,11/12/2023,P6,9109555,"-12,240.00 ","12,240.00 ",1801,Training,2059,Corporate Training,"10,200.00 ",
Nottinghamshire fire and Rescue Service,100778,Fire Service College Ltd,Fire Service College Ltd,Management & Support Services,4,202409,18/12/2023,P6,9109567,"-3,594.00 ","3,594.00 ",1801,Training,2059,Corporate Training,"2,995.00 ",
Nottinghamshire fire and Rescue Service,103187,Onefile Limited,Onefile Limited,Management & Support Services,5,202409,05/12/2023,P6,9109595,"-7,386.00 ","7,386.00 ",1801,Training,2059,Corporate Training,-930.00 ,
Nottinghamshire fire and Rescue Service,103187,Onefile Limited,Onefile Limited,Management & Support Services,5,202409,05/12/2023,P6,9109595,"-7,386.00 ","7,386.00 ",1801,Training,2059,Corporate Training,"6,930.00 ",
Nottinghamshire fire and Rescue Service,103866,Richardson Associates (UK) Limited,Richardson Associates (UK) Limited,Management & Support Services,5,202409,31/10/2023,P6,9109613,-264.00 ,264.00 ,1801,Training,2054,Equalities Team,220.00 ,
Nottinghamshire fire and Rescue Service,103866,Richardson Associates (UK) Limited,Richardson Associates (UK) Limited,Management & Support Services,5,202409,30/11/2023,P6,9109614,-264.00 ,264.00 ,1801,Training,2054,Equalities Team,220.00 ,
Nottinghamshire fire and Rescue Service,102697,Canal & River Trust,Canal & River Trust,Management & Support Services,1,202409,20/12/2023,P6,9109650,-258.15 ,258.15 ,1801,Training,2059,Corporate Training,258.15 ,
Nottinghamshire fire and Rescue Service,101000,C F S Messing Account Stockhill,C F S Messing Account Stockhill,Operational Responses,8,202409,31/10/2023,P6,9109418,-287.50 ,287.50 ,1814,Spoilt Meal Reimbursement,1020,Stockhill,222.00 ,
Nottinghamshire fire and Rescue Service,104248,RealWorldHR Limited,RealWorldHR Limited,Management & Support Services,5,202409,04/12/2023,P6,9109406,"-9,799.02 ","9,799.02 ",1850,Recruitment Advertising,2058,HR Support,"8,165.85 ",
Nottinghamshire fire and Rescue Service,103823,"Futures Advice, Skills and Employment Ltd","Futures Advice, Skills and Employment Ltd",Management & Support Services,5,202409,01/12/2023,P6,9109509,"-4,377.67 ","4,377.67 ",1850,Recruitment Advertising,2049,Professional Support,"3,648.06 ",
Nottinghamshire fire and Rescue Service,103377,Flat Fee Recruiter Limited,Flat Fee Recruiter Limited,Management & Support Services,5,202409,05/12/2023,P6,9109608,-322.80 ,322.80 ,1850,Recruitment Advertising,2049,Professional Support,269.00 ,
Nottinghamshire fire and Rescue Service,103377,Flat Fee Recruiter Limited,Flat Fee Recruiter Limited,Management & Support Services,5,202409,14/12/2023,P6,9109609,-322.80 ,322.80 ,1850,Recruitment Advertising,2049,Professional Support,269.00 ,
Nottinghamshire fire and Rescue Service,103923,Bupa UK Insurance Services,Bupa UK Insurance Services,Management & Support Services,5,202409,29/11/2023,P6,9109357,"-3,342.76 ","3,342.76 ",1860,Employee Benefits Schemes,2049,Professional Support,"3,342.76 ",
Nottinghamshire fire and Rescue Service,100357,Eastern Shires Purchasing Organisation,Eastern Shires Purchasing Organisation,Operational Responses,1,202409,05/12/2023,P6,9109422,-328.20 ,328.20 ,2000,Buildings Repairs and Maintenance - Reactive,1005,Ashfield,273.50 ,
Nottinghamshire fire and Rescue Service,100357,Eastern Shires Purchasing Organisation,Eastern Shires Purchasing Organisation,Operational Responses,1,202409,15/12/2023,P6,9109628,-317.94 ,317.94 ,2000,Buildings Repairs and Maintenance - Reactive,1008,Worksop,264.95 ,
Nottinghamshire fire and Rescue Service,103837,BWT UK Limited,BWT UK Limited,Management & Support Services,5,202409,30/11/2023,P6,9109384,-571.52 ,571.52 ,2050,Building Maintenance - Planned,2087,Estates Department (Previously Premises),476.27 ,
Nottinghamshire fire and Rescue Service,102280,Amptron Electrical Services,Amptron Electrical Services,Operational Responses,1,202409,05/12/2023,P6,9109428,"-3,528.00 ","3,528.00 ",2050,Building Maintenance - Planned,1002,Blidworth,"2,940.00 ",
Nottinghamshire fire and Rescue Service,102280,Amptron Electrical Services,Amptron Electrical Services,Operational Responses,1,202409,06/12/2023,P6,9109480,"-26,317.00 ","26,317.00 ",2050,Building Maintenance - Planned,1001,Mansfield,936.55 ,
Nottinghamshire fire and Rescue Service,102280,Amptron Electrical Services,Amptron Electrical Services,Operational Responses,1,202409,06/12/2023,P6,9109480,"-26,317.00 ","26,317.00 ",2050,Building Maintenance - Planned,1002,Blidworth,456.37 ,
Nottinghamshire fire and Rescue Service,102280,Amptron Electrical Services,Amptron Electrical Services,Operational Responses,1,202409,06/12/2023,P6,9109480,"-26,317.00 ","26,317.00 ",2050,Building Maintenance - Planned,1003,London Road,957.64 ,
Nottinghamshire fire and Rescue Service,102280,Amptron Electrical Services,Amptron Electrical Services,Operational Responses,1,202409,06/12/2023,P6,9109480,"-26,317.00 ","26,317.00 ",2050,Building Maintenance - Planned,1005,Ashfield,"1,283.79 ",
Nottinghamshire fire and Rescue Service,102280,Amptron Electrical Services,Amptron Electrical Services,Operational Responses,1,202409,06/12/2023,P6,9109480,"-26,317.00 ","26,317.00 ",2050,Building Maintenance - Planned,1006,Edwinstowe,"1,219.97 ",
Nottinghamshire fire and Rescue Service,102280,Amptron Electrical Services,Amptron Electrical Services,Operational Responses,1,202409,06/12/2023,P6,9109480,"-26,317.00 ","26,317.00 ",2050,Building Maintenance - Planned,1007,Warsop,479.71 ,
Nottinghamshire fire and Rescue Service,102280,Amptron Electrical Services,Amptron Electrical Services,Operational Responses,1,202409,06/12/2023,P6,9109480,"-26,317.00 ","26,317.00 ",2050,Building Maintenance - Planned,1008,Worksop,"1,308.99 ",
Nottinghamshire fire and Rescue Service,102280,Amptron Electrical Services,Amptron Electrical Services,Operational Responses,1,202409,06/12/2023,P6,9109480,"-26,317.00 ","26,317.00 ",2050,Building Maintenance - Planned,1010,Harworth,407.26 ,
Nottinghamshire fire and Rescue Service,102280,Amptron Electrical Services,Amptron Electrical Services,Operational Responses,1,202409,06/12/2023,P6,9109480,"-26,317.00 ","26,317.00 ",2050,Building Maintenance - Planned,1011,Misterton,486.75 ,
Nottinghamshire fire and Rescue Service,102280,Amptron Electrical Services,Amptron Electrical Services,Operational Responses,1,202409,06/12/2023,P6,9109480,"-26,317.00 ","26,317.00 ",2050,Building Maintenance - Planned,1012,Retford,"1,053.02 ",
Nottinghamshire fire and Rescue Service,102280,Amptron Electrical Services,Amptron Electrical Services,Operational Responses,1,202409,06/12/2023,P6,9109480,"-26,317.00 ","26,317.00 ",2050,Building Maintenance - Planned,1013,Tuxford,"1,343.73 ",
Nottinghamshire fire and Rescue Service,102280,Amptron Electrical Services,Amptron Electrical Services,Operational Responses,1,202409,06/12/2023,P6,9109480,"-26,317.00 ","26,317.00 ",2050,Building Maintenance - Planned,1014,Southwell,922.95 ,
Nottinghamshire fire and Rescue Service,102280,Amptron Electrical Services,Amptron Electrical Services,Operational Responses,1,202409,06/12/2023,P6,9109480,"-26,317.00 ","26,317.00 ",2050,Building Maintenance - Planned,1015,Collingham,458.80 ,
Nottinghamshire fire and Rescue Service,102280,Amptron Electrical Services,Amptron Electrical Services,Operational Responses,1,202409,06/12/2023,P6,9109480,"-26,317.00 ","26,317.00 ",2050,Building Maintenance - Planned,1016,Newark,"1,128.58 ",
Nottinghamshire fire and Rescue Service,102280,Amptron Electrical Services,Amptron Electrical Services,Operational Responses,1,202409,06/12/2023,P6,9109480,"-26,317.00 ","26,317.00 ",2050,Building Maintenance - Planned,1017,Bingham,415.61 ,
Nottinghamshire fire and Rescue Service,102280,Amptron Electrical Services,Amptron Electrical Services,Operational Responses,1,202409,06/12/2023,P6,9109480,"-26,317.00 ","26,317.00 ",2050,Building Maintenance - Planned,1019,West Bridgford,"1,127.02 ",
Nottinghamshire fire and Rescue Service,102280,Amptron Electrical Services,Amptron Electrical Services,Operational Responses,1,202409,06/12/2023,P6,9109480,"-26,317.00 ","26,317.00 ",2050,Building Maintenance - Planned,1020,Stockhill,"1,520.88 ",
Nottinghamshire fire and Rescue Service,102280,Amptron Electrical Services,Amptron Electrical Services,Operational Responses,1,202409,06/12/2023,P6,9109480,"-26,317.00 ","26,317.00 ",2050,Building Maintenance - Planned,1023,Stapleford,462.66 ,
Nottinghamshire fire and Rescue Service,102280,Amptron Electrical Services,Amptron Electrical Services,Operational Responses,1,202409,06/12/2023,P6,9109480,"-26,317.00 ","26,317.00 ",2050,Building Maintenance - Planned,1024,Eastwood,421.34 ,
Nottinghamshire fire and Rescue Service,102280,Amptron Electrical Services,Amptron Electrical Services,Operational Responses,1,202409,06/12/2023,P6,9109480,"-26,317.00 ","26,317.00 ",2050,Building Maintenance - Planned,1025,Hucknall,34.86 ,
Nottinghamshire fire and Rescue Service,102280,Amptron Electrical Services,Amptron Electrical Services,Operational Responses,1,202409,06/12/2023,P6,9109480,"-26,317.00 ","26,317.00 ",2050,Building Maintenance - Planned,1026,Arnold,"1,001.58 ",
Nottinghamshire fire and Rescue Service,102280,Amptron Electrical Services,Amptron Electrical Services,Operational Responses,1,202409,06/12/2023,P6,9109480,"-26,317.00 ","26,317.00 ",2050,Building Maintenance - Planned,1027,Carlton,947.20 ,
Nottinghamshire fire and Rescue Service,102280,Amptron Electrical Services,Amptron Electrical Services,Operational Responses,1,202409,06/12/2023,P6,9109480,"-26,317.00 ","26,317.00 ",2050,Building Maintenance - Planned,1028,East Leake,598.32 ,
Nottinghamshire fire and Rescue Service,102280,Amptron Electrical Services,Amptron Electrical Services,Operational Responses,1,202409,06/12/2023,P6,9109480,"-26,317.00 ","26,317.00 ",2050,Building Maintenance - Planned,1029,Highfields Station,"1,796.64 ",
Nottinghamshire fire and Rescue Service,102280,Amptron Electrical Services,Amptron Electrical Services,Management & Support Services,1,202409,06/12/2023,P6,9109480,"-26,317.00 ","26,317.00 ",2050,Building Maintenance - Planned,1030,Service Development Centre,"1,160.61 ",
Nottinghamshire fire and Rescue Service,102744,EDF Energy,EDF Energy,Operational Responses,1,202409,28/11/2023,P6,9109346,"-3,250.49 ","3,250.49 ",2100,Electricity,1008,Worksop,"2,708.74 ",
Nottinghamshire fire and Rescue Service,102744,EDF Energy,EDF Energy,Operational Responses,1,202409,30/11/2023,P6,9109372,-354.32 ,354.32 ,2100,Electricity,2078,Mansfield Fire Station Museum,337.45 ,
Nottinghamshire fire and Rescue Service,102744,EDF Energy,EDF Energy,Operational Responses,1,202409,30/11/2023,P6,9109376,"-1,581.24 ","1,581.24 ",2100,Electricity,1013,Tuxford,"1,317.70 ",
Nottinghamshire fire and Rescue Service,102744,EDF Energy,EDF Energy,Operational Responses,1,202409,30/11/2023,P6,9109377,"-2,437.80 ","2,437.80 ",2100,Electricity,1026,Arnold,"2,031.50 ",
Nottinghamshire fire and Rescue Service,102744,EDF Energy,EDF Energy,Operational Responses,1,202409,30/11/2023,P6,9109378,"-4,260.69 ","4,260.69 ",2100,Electricity,1001,Mansfield,"3,550.57 ",
Nottinghamshire fire and Rescue Service,102744,EDF Energy,EDF Energy,Operational Responses,1,202409,30/11/2023,P6,9109380,-588.68 ,588.68 ,2100,Electricity,1002,Blidworth,490.57 ,
Nottinghamshire fire and Rescue Service,102744,EDF Energy,EDF Energy,Operational Responses,1,202409,30/11/2023,P6,9109381,"-3,490.83 ","3,490.83 ",2100,Electricity,1024,Eastwood,"2,909.02 ",
Nottinghamshire fire and Rescue Service,102744,EDF Energy,EDF Energy,Operational Responses,1,202409,30/11/2023,P6,9109382,-566.78 ,566.78 ,2100,Electricity,1014,Southwell,472.32 ,
Nottinghamshire fire and Rescue Service,102744,EDF Energy,EDF Energy,Operational Responses,1,202409,01/12/2023,P6,9109489,"-4,163.50 ","4,163.50 ",2100,Electricity,1008,Worksop,"3,469.58 ",
Nottinghamshire fire and Rescue Service,102744,EDF Energy,EDF Energy,Operational Responses,1,202409,04/12/2023,P6,9109490,-565.36 ,565.36 ,2100,Electricity,1015,Collingham,471.13 ,
Nottinghamshire fire and Rescue Service,102744,EDF Energy,EDF Energy,Operational Responses,1,202409,04/12/2023,P6,9109491,-735.49 ,735.49 ,2100,Electricity,1028,East Leake,612.91 ,
Nottinghamshire fire and Rescue Service,102744,EDF Energy,EDF Energy,Operational Responses,1,202409,06/12/2023,P6,9109493,-816.71 ,816.71 ,2100,Electricity,1028,East Leake,0.13 ,
Nottinghamshire fire and Rescue Service,102744,EDF Energy,EDF Energy,Operational Responses,1,202409,06/12/2023,P6,9109493,-816.71 ,816.71 ,2100,Electricity,1028,East Leake,680.49 ,
Nottinghamshire fire and Rescue Service,102744,EDF Energy,EDF Energy,Operational Responses,1,202409,06/12/2023,P6,9109507,"-35,536.10 ","35,536.10 ",2100,Electricity,1003,London Road,"4,221.72 ",
Nottinghamshire fire and Rescue Service,102744,EDF Energy,EDF Energy,Operational Responses,1,202409,06/12/2023,P6,9109507,"-35,536.10 ","35,536.10 ",2100,Electricity,1012,Retford,"2,454.82 ",
Nottinghamshire fire and Rescue Service,102744,EDF Energy,EDF Energy,Operational Responses,1,202409,06/12/2023,P6,9109507,"-35,536.10 ","35,536.10 ",2100,Electricity,1016,Newark,"2,287.21 ",
Nottinghamshire fire and Rescue Service,102744,EDF Energy,EDF Energy,Operational Responses,1,202409,06/12/2023,P6,9109507,"-35,536.10 ","35,536.10 ",2100,Electricity,1027,Carlton,"4,305.05 ",
Nottinghamshire fire and Rescue Service,102744,EDF Energy,EDF Energy,Operational Responses,1,202409,06/12/2023,P6,9109507,"-35,536.10 ","35,536.10 ",2100,Electricity,1029,Highfields Station,"10,001.94 ",
Nottinghamshire fire and Rescue Service,102744,EDF Energy,EDF Energy,Management & Support Services,1,202409,06/12/2023,P6,9109507,"-35,536.10 ","35,536.10 ",2100,Electricity,1030,Service Development Centre,"4,217.34 ",
Nottinghamshire fire and Rescue Service,102744,EDF Energy,EDF Energy,Management & Support Services,1,202409,06/12/2023,P6,9109507,"-35,536.10 ","35,536.10 ",2100,Electricity,1035,Headquarters,"1,981.74 ",
Nottinghamshire fire and Rescue Service,102744,EDF Energy,EDF Energy,Management & Support Services,1,202409,06/12/2023,P6,9109507,"-35,536.10 ","35,536.10 ",2100,Electricity,2087,Estates Department (Previously Premises),172.32 ,
Nottinghamshire fire and Rescue Service,102744,EDF Energy,EDF Energy,Operational Responses,1,202409,08/12/2023,P6,9109593,-270.00 ,270.00 ,2100,Electricity,1008,Worksop,225.00 ,
Nottinghamshire fire and Rescue Service,102744,EDF Energy,EDF Energy,Operational Responses,1,202409,28/11/2023,P6,9109347,"3,255.92 ","-3,255.92 ",2100,Electricity,1008,Worksop,"-2,713.26 ",
Nottinghamshire fire and Rescue Service,104098,Total Gas & Power Limited,Total Gas & Power Limited,Operational Responses,5,202409,04/12/2023,P6,9109487,"-1,595.37 ","1,595.37 ",2101,Gas,1001,Mansfield,"1,329.47 ",
Nottinghamshire fire and Rescue Service,100055,Nottingham City Council,Nottingham City Council,Operational Responses,4,202409,08/12/2023,P6,9109492,"-4,029.58 ","4,029.58 ",2101,Gas,1003,London Road,"3,357.98 ",
Nottinghamshire fire and Rescue Service,104098,Total Gas & Power Limited,Total Gas & Power Limited,Operational Responses,5,202409,11/12/2023,P6,9109572,"-3,122.39 ","3,122.39 ",2101,Gas,1020,Stockhill,"2,601.99 ",
Nottinghamshire fire and Rescue Service,104098,Total Gas & Power Limited,Total Gas & Power Limited,Management & Support Services,5,202409,11/12/2023,P6,9109573,"-2,221.84 ","2,221.84 ",2101,Gas,1030,Service Development Centre,"1,851.54 ",
Nottinghamshire fire and Rescue Service,104098,Total Gas & Power Limited,Total Gas & Power Limited,Operational Responses,5,202409,11/12/2023,P6,9109574,"-1,072.11 ","1,072.11 ",2101,Gas,1017,Bingham,893.43 ,
Nottinghamshire fire and Rescue Service,104098,Total Gas & Power Limited,Total Gas & Power Limited,Operational Responses,5,202409,11/12/2023,P6,9109575,"-2,277.40 ","2,277.40 ",2101,Gas,1019,West Bridgford,"1,897.83 ",
Nottinghamshire fire and Rescue Service,104098,Total Gas & Power Limited,Total Gas & Power Limited,Operational Responses,5,202409,11/12/2023,P6,9109576,"-1,586.09 ","1,586.09 ",2101,Gas,1024,Eastwood,"1,321.74 ",
Nottinghamshire fire and Rescue Service,104098,Total Gas & Power Limited,Total Gas & Power Limited,Operational Responses,5,202409,11/12/2023,P6,9109577,"-1,428.02 ","1,428.02 ",2101,Gas,1012,Retford,"1,190.01 ",
Nottinghamshire fire and Rescue Service,104098,Total Gas & Power Limited,Total Gas & Power Limited,Operational Responses,5,202409,11/12/2023,P6,9109579,"-2,612.32 ","2,612.32 ",2101,Gas,1026,Arnold,"2,176.93 ",
Nottinghamshire fire and Rescue Service,104098,Total Gas & Power Limited,Total Gas & Power Limited,Prevention & Education,5,202409,11/12/2023,P6,9109580,"-1,021.94 ","1,021.94 ",2101,Gas,1036,Clifton Community Safety Centre,851.61 ,
Nottinghamshire fire and Rescue Service,104098,Total Gas & Power Limited,Total Gas & Power Limited,Operational Responses,5,202409,11/12/2023,P6,9109581,-945.24 ,945.24 ,2101,Gas,1016,Newark,787.70 ,
Nottinghamshire fire and Rescue Service,104098,Total Gas & Power Limited,Total Gas & Power Limited,Operational Responses,5,202409,11/12/2023,P6,9109582,"-3,866.79 ","3,866.79 ",2101,Gas,1029,Highfields Station,"3,222.33 ",
Nottinghamshire fire and Rescue Service,104098,Total Gas & Power Limited,Total Gas & Power Limited,Operational Responses,5,202409,11/12/2023,P6,9109583,"-1,532.32 ","1,532.32 ",2101,Gas,1001,Mansfield,"1,276.93 ",
Nottinghamshire fire and Rescue Service,104098,Total Gas & Power Limited,Total Gas & Power Limited,Operational Responses,5,202409,11/12/2023,P6,9109585,"-2,319.93 ","2,319.93 ",2101,Gas,1006,Edwinstowe,"1,933.27 ",
Nottinghamshire fire and Rescue Service,104098,Total Gas & Power Limited,Total Gas & Power Limited,Operational Responses,5,202409,11/12/2023,P6,9109586,"-4,355.15 ","4,355.15 ",2101,Gas,1005,Ashfield,"3,629.29 ",
Nottinghamshire fire and Rescue Service,104098,Total Gas & Power Limited,Total Gas & Power Limited,Operational Responses,5,202409,11/12/2023,P6,9109587,-711.27 ,711.27 ,2101,Gas,1010,Harworth,592.73 ,
Nottinghamshire fire and Rescue Service,104098,Total Gas & Power Limited,Total Gas & Power Limited,Operational Responses,5,202409,11/12/2023,P6,9109588,-408.92 ,408.92 ,2101,Gas,1015,Collingham,389.45 ,
Nottinghamshire fire and Rescue Service,104098,Total Gas & Power Limited,Total Gas & Power Limited,Operational Responses,5,202409,11/12/2023,P6,9109589,-292.96 ,292.96 ,2101,Gas,1014,Southwell,279.01 ,
Nottinghamshire fire and Rescue Service,104098,Total Gas & Power Limited,Total Gas & Power Limited,Operational Responses,5,202409,11/12/2023,P6,9109590,-260.79 ,260.79 ,2101,Gas,1007,Warsop,248.37 ,
Nottinghamshire fire and Rescue Service,104098,Total Gas & Power Limited,Total Gas & Power Limited,Operational Responses,5,202409,11/12/2023,P6,9109591,-322.91 ,322.91 ,2101,Gas,1002,Blidworth,307.53 ,
Nottinghamshire fire and Rescue Service,104098,Total Gas & Power Limited,Total Gas & Power Limited,Operational Responses,5,202409,11/12/2023,P6,9109594,"-10,656.04 ","10,656.04 ",2101,Gas,1001,Mansfield,"8,880.04 ",
Nottinghamshire fire and Rescue Service,104098,Total Gas & Power Limited,Total Gas & Power Limited,Operational Responses,5,202409,04/12/2023,P6,9109488,"3,559.50 ","-3,559.50 ",2101,Gas,1001,Mansfield,"-2,966.24 ",
Nottinghamshire fire and Rescue Service,104256,Advanced Demand Side Management Limited,Advanced Demand Side Management Limited,Operational Responses,5,202409,01/11/2023,P6,9109374,"-5,919.09 ","5,919.09 ",2103,Water Rates,1001,Mansfield,-19.80 ,
Nottinghamshire fire and Rescue Service,104256,Advanced Demand Side Management Limited,Advanced Demand Side Management Limited,Operational Responses,5,202409,01/11/2023,P6,9109374,"-5,919.09 ","5,919.09 ",2103,Water Rates,1001,Mansfield,22.12 ,
Nottinghamshire fire and Rescue Service,104256,Advanced Demand Side Management Limited,Advanced Demand Side Management Limited,Operational Responses,5,202409,01/11/2023,P6,9109374,"-5,919.09 ","5,919.09 ",2103,Water Rates,1001,Mansfield,26.02 ,
Nottinghamshire fire and Rescue Service,104256,Advanced Demand Side Management Limited,Advanced Demand Side Management Limited,Operational Responses,5,202409,01/11/2023,P6,9109374,"-5,919.09 ","5,919.09 ",2103,Water Rates,1001,Mansfield,41.17 ,
Nottinghamshire fire and Rescue Service,104256,Advanced Demand Side Management Limited,Advanced Demand Side Management Limited,Operational Responses,5,202409,01/11/2023,P6,9109374,"-5,919.09 ","5,919.09 ",2103,Water Rates,1002,Blidworth,-25.61 ,
Nottinghamshire fire and Rescue Service,104256,Advanced Demand Side Management Limited,Advanced Demand Side Management Limited,Operational Responses,5,202409,01/11/2023,P6,9109374,"-5,919.09 ","5,919.09 ",2103,Water Rates,1002,Blidworth,-24.79 ,
Nottinghamshire fire and Rescue Service,104256,Advanced Demand Side Management Limited,Advanced Demand Side Management Limited,Operational Responses,5,202409,01/11/2023,P6,9109374,"-5,919.09 ","5,919.09 ",2103,Water Rates,1002,Blidworth,2.32 ,
Nottinghamshire fire and Rescue Service,104256,Advanced Demand Side Management Limited,Advanced Demand Side Management Limited,Operational Responses,5,202409,01/11/2023,P6,9109374,"-5,919.09 ","5,919.09 ",2103,Water Rates,1002,Blidworth,2.40 ,
Nottinghamshire fire and Rescue Service,104256,Advanced Demand Side Management Limited,Advanced Demand Side Management Limited,Operational Responses,5,202409,01/11/2023,P6,9109374,"-5,919.09 ","5,919.09 ",2103,Water Rates,1002,Blidworth,2.45 ,
Nottinghamshire fire and Rescue Service,104256,Advanced Demand Side Management Limited,Advanced Demand Side Management Limited,Operational Responses,5,202409,01/11/2023,P6,9109374,"-5,919.09 ","5,919.09 ",2103,Water Rates,1003,London Road,70.49 ,
Nottinghamshire fire and Rescue Service,104256,Advanced Demand Side Management Limited,Advanced Demand Side Management Limited,Operational Responses,5,202409,01/11/2023,P6,9109374,"-5,919.09 ","5,919.09 ",2103,Water Rates,1005,Ashfield,-90.01 ,
Nottinghamshire fire and Rescue Service,104256,Advanced Demand Side Management Limited,Advanced Demand Side Management Limited,Operational Responses,5,202409,01/11/2023,P6,9109374,"-5,919.09 ","5,919.09 ",2103,Water Rates,1005,Ashfield,-87.10 ,
Nottinghamshire fire and Rescue Service,104256,Advanced Demand Side Management Limited,Advanced Demand Side Management Limited,Operational Responses,5,202409,01/11/2023,P6,9109374,"-5,919.09 ","5,919.09 ",2103,Water Rates,1005,Ashfield,70.89 ,
Nottinghamshire fire and Rescue Service,104256,Advanced Demand Side Management Limited,Advanced Demand Side Management Limited,Operational Responses,5,202409,01/11/2023,P6,9109374,"-5,919.09 ","5,919.09 ",2103,Water Rates,1005,Ashfield,75.79 ,
Nottinghamshire fire and Rescue Service,104256,Advanced Demand Side Management Limited,Advanced Demand Side Management Limited,Operational Responses,5,202409,01/11/2023,P6,9109374,"-5,919.09 ","5,919.09 ",2103,Water Rates,1005,Ashfield,78.33 ,
Nottinghamshire fire and Rescue Service,104256,Advanced Demand Side Management Limited,Advanced Demand Side Management Limited,Operational Responses,5,202409,01/11/2023,P6,9109374,"-5,919.09 ","5,919.09 ",2103,Water Rates,1006,Edwinstowe,-104.30 ,
Nottinghamshire fire and Rescue Service,104256,Advanced Demand Side Management Limited,Advanced Demand Side Management Limited,Operational Responses,5,202409,01/11/2023,P6,9109374,"-5,919.09 ","5,919.09 ",2103,Water Rates,1006,Edwinstowe,55.02 ,
Nottinghamshire fire and Rescue Service,104256,Advanced Demand Side Management Limited,Advanced Demand Side Management Limited,Operational Responses,5,202409,01/11/2023,P6,9109374,"-5,919.09 ","5,919.09 ",2103,Water Rates,1006,Edwinstowe,55.94 ,
Nottinghamshire fire and Rescue Service,104256,Advanced Demand Side Management Limited,Advanced Demand Side Management Limited,Operational Responses,5,202409,01/11/2023,P6,9109374,"-5,919.09 ","5,919.09 ",2103,Water Rates,1007,Warsop,-23.42 ,
Nottinghamshire fire and Rescue Service,104256,Advanced Demand Side Management Limited,Advanced Demand Side Management Limited,Operational Responses,5,202409,01/11/2023,P6,9109374,"-5,919.09 ","5,919.09 ",2103,Water Rates,1007,Warsop,-22.37 ,
Nottinghamshire fire and Rescue Service,104256,Advanced Demand Side Management Limited,Advanced Demand Side Management Limited,Operational Responses,5,202409,01/11/2023,P6,9109374,"-5,919.09 ","5,919.09 ",2103,Water Rates,1007,Warsop,14.94 ,
Nottinghamshire fire and Rescue Service,104256,Advanced Demand Side Management Limited,Advanced Demand Side Management Limited,Operational Responses,5,202409,01/11/2023,P6,9109374,"-5,919.09 ","5,919.09 ",2103,Water Rates,1007,Warsop,17.44 ,
Nottinghamshire fire and Rescue Service,104256,Advanced Demand Side Management Limited,Advanced Demand Side Management Limited,Operational Responses,5,202409,01/11/2023,P6,9109374,"-5,919.09 ","5,919.09 ",2103,Water Rates,1007,Warsop,18.99 ,
Nottinghamshire fire and Rescue Service,104256,Advanced Demand Side Management Limited,Advanced Demand Side Management Limited,Operational Responses,5,202409,01/11/2023,P6,9109374,"-5,919.09 ","5,919.09 ",2103,Water Rates,1008,Worksop,565.61 ,
Nottinghamshire fire and Rescue Service,104256,Advanced Demand Side Management Limited,Advanced Demand Side Management Limited,Operational Responses,5,202409,01/11/2023,P6,9109374,"-5,919.09 ","5,919.09 ",2103,Water Rates,1010,Harworth,-26.71 ,
Nottinghamshire fire and Rescue Service,104256,Advanced Demand Side Management Limited,Advanced Demand Side Management Limited,Operational Responses,5,202409,01/11/2023,P6,9109374,"-5,919.09 ","5,919.09 ",2103,Water Rates,1010,Harworth,-21.56 ,
Nottinghamshire fire and Rescue Service,104256,Advanced Demand Side Management Limited,Advanced Demand Side Management Limited,Operational Responses,5,202409,01/11/2023,P6,9109374,"-5,919.09 ","5,919.09 ",2103,Water Rates,1010,Harworth,-18.52 ,
Nottinghamshire fire and Rescue Service,104256,Advanced Demand Side Management Limited,Advanced Demand Side Management Limited,Operational Responses,5,202409,01/11/2023,P6,9109374,"-5,919.09 ","5,919.09 ",2103,Water Rates,1010,Harworth,13.21 ,
Nottinghamshire fire and Rescue Service,104256,Advanced Demand Side Management Limited,Advanced Demand Side Management Limited,Operational Responses,5,202409,01/11/2023,P6,9109374,"-5,919.09 ","5,919.09 ",2103,Water Rates,1010,Harworth,15.67 ,
Nottinghamshire fire and Rescue Service,104256,Advanced Demand Side Management Limited,Advanced Demand Side Management Limited,Operational Responses,5,202409,01/11/2023,P6,9109374,"-5,919.09 ","5,919.09 ",2103,Water Rates,1010,Harworth,20.36 ,
Nottinghamshire fire and Rescue Service,104256,Advanced Demand Side Management Limited,Advanced Demand Side Management Limited,Operational Responses,5,202409,01/11/2023,P6,9109374,"-5,919.09 ","5,919.09 ",2103,Water Rates,1010,Harworth,24.06 ,
Nottinghamshire fire and Rescue Service,104256,Advanced Demand Side Management Limited,Advanced Demand Side Management Limited,Operational Responses,5,202409,01/11/2023,P6,9109374,"-5,919.09 ","5,919.09 ",2103,Water Rates,1011,Misterton,7.99 ,
Nottinghamshire fire and Rescue Service,104256,Advanced Demand Side Management Limited,Advanced Demand Side Management Limited,Operational Responses,5,202409,01/11/2023,P6,9109374,"-5,919.09 ","5,919.09 ",2103,Water Rates,1012,Retford,-289.70 ,
Nottinghamshire fire and Rescue Service,104256,Advanced Demand Side Management Limited,Advanced Demand Side Management Limited,Operational Responses,5,202409,01/11/2023,P6,9109374,"-5,919.09 ","5,919.09 ",2103,Water Rates,1012,Retford,-60.59 ,
Nottinghamshire fire and Rescue Service,104256,Advanced Demand Side Management Limited,Advanced Demand Side Management Limited,Operational Responses,5,202409,01/11/2023,P6,9109374,"-5,919.09 ","5,919.09 ",2103,Water Rates,1012,Retford,-58.65 ,
Nottinghamshire fire and Rescue Service,104256,Advanced Demand Side Management Limited,Advanced Demand Side Management Limited,Operational Responses,5,202409,01/11/2023,P6,9109374,"-5,919.09 ","5,919.09 ",2103,Water Rates,1012,Retford,35.21 ,
Nottinghamshire fire and Rescue Service,104256,Advanced Demand Side Management Limited,Advanced Demand Side Management Limited,Operational Responses,5,202409,01/11/2023,P6,9109374,"-5,919.09 ","5,919.09 ",2103,Water Rates,1012,Retford,36.38 ,
Nottinghamshire fire and Rescue Service,104256,Advanced Demand Side Management Limited,Advanced Demand Side Management Limited,Operational Responses,5,202409,01/11/2023,P6,9109374,"-5,919.09 ","5,919.09 ",2103,Water Rates,1012,Retford,151.43 ,
Nottinghamshire fire and Rescue Service,104256,Advanced Demand Side Management Limited,Advanced Demand Side Management Limited,Operational Responses,5,202409,01/11/2023,P6,9109374,"-5,919.09 ","5,919.09 ",2103,Water Rates,1013,Tuxford,-107.82 ,
Nottinghamshire fire and Rescue Service,104256,Advanced Demand Side Management Limited,Advanced Demand Side Management Limited,Operational Responses,5,202409,01/11/2023,P6,9109374,"-5,919.09 ","5,919.09 ",2103,Water Rates,1013,Tuxford,-104.34 ,
Nottinghamshire fire and Rescue Service,104256,Advanced Demand Side Management Limited,Advanced Demand Side Management Limited,Operational Responses,5,202409,01/11/2023,P6,9109374,"-5,919.09 ","5,919.09 ",2103,Water Rates,1013,Tuxford,-30.49 ,
Nottinghamshire fire and Rescue Service,104256,Advanced Demand Side Management Limited,Advanced Demand Side Management Limited,Operational Responses,5,202409,01/11/2023,P6,9109374,"-5,919.09 ","5,919.09 ",2103,Water Rates,1013,Tuxford,17.12 ,
Nottinghamshire fire and Rescue Service,104256,Advanced Demand Side Management Limited,Advanced Demand Side Management Limited,Operational Responses,5,202409,01/11/2023,P6,9109374,"-5,919.09 ","5,919.09 ",2103,Water Rates,1013,Tuxford,17.69 ,
Nottinghamshire fire and Rescue Service,104256,Advanced Demand Side Management Limited,Advanced Demand Side Management Limited,Operational Responses,5,202409,01/11/2023,P6,9109374,"-5,919.09 ","5,919.09 ",2103,Water Rates,1013,Tuxford,60.87 ,
Nottinghamshire fire and Rescue Service,104256,Advanced Demand Side Management Limited,Advanced Demand Side Management Limited,Operational Responses,5,202409,01/11/2023,P6,9109374,"-5,919.09 ","5,919.09 ",2103,Water Rates,1014,Southwell,18.16 ,
Nottinghamshire fire and Rescue Service,104256,Advanced Demand Side Management Limited,Advanced Demand Side Management Limited,Operational Responses,5,202409,01/11/2023,P6,9109374,"-5,919.09 ","5,919.09 ",2103,Water Rates,1015,Collingham,23.87 ,
Nottinghamshire fire and Rescue Service,104256,Advanced Demand Side Management Limited,Advanced Demand Side Management Limited,Operational Responses,5,202409,01/11/2023,P6,9109374,"-5,919.09 ","5,919.09 ",2103,Water Rates,1016,Newark,-153.45 ,
Nottinghamshire fire and Rescue Service,104256,Advanced Demand Side Management Limited,Advanced Demand Side Management Limited,Operational Responses,5,202409,01/11/2023,P6,9109374,"-5,919.09 ","5,919.09 ",2103,Water Rates,1016,Newark,-151.59 ,
Nottinghamshire fire and Rescue Service,104256,Advanced Demand Side Management Limited,Advanced Demand Side Management Limited,Operational Responses,5,202409,01/11/2023,P6,9109374,"-5,919.09 ","5,919.09 ",2103,Water Rates,1016,Newark,2.69 ,
Nottinghamshire fire and Rescue Service,104256,Advanced Demand Side Management Limited,Advanced Demand Side Management Limited,Operational Responses,5,202409,01/11/2023,P6,9109374,"-5,919.09 ","5,919.09 ",2103,Water Rates,1016,Newark,94.42 ,
Nottinghamshire fire and Rescue Service,104256,Advanced Demand Side Management Limited,Advanced Demand Side Management Limited,Operational Responses,5,202409,01/11/2023,P6,9109374,"-5,919.09 ","5,919.09 ",2103,Water Rates,1016,Newark,96.69 ,
Nottinghamshire fire and Rescue Service,104256,Advanced Demand Side Management Limited,Advanced Demand Side Management Limited,Operational Responses,5,202409,01/11/2023,P6,9109374,"-5,919.09 ","5,919.09 ",2103,Water Rates,1016,Newark,97.57 ,
Nottinghamshire fire and Rescue Service,104256,Advanced Demand Side Management Limited,Advanced Demand Side Management Limited,Operational Responses,5,202409,01/11/2023,P6,9109374,"-5,919.09 ","5,919.09 ",2103,Water Rates,1017,Bingham,-14.82 ,
Nottinghamshire fire and Rescue Service,104256,Advanced Demand Side Management Limited,Advanced Demand Side Management Limited,Operational Responses,5,202409,01/11/2023,P6,9109374,"-5,919.09 ","5,919.09 ",2103,Water Rates,1017,Bingham,11.83 ,
Nottinghamshire fire and Rescue Service,104256,Advanced Demand Side Management Limited,Advanced Demand Side Management Limited,Operational Responses,5,202409,01/11/2023,P6,9109374,"-5,919.09 ","5,919.09 ",2103,Water Rates,1017,Bingham,14.14 ,
Nottinghamshire fire and Rescue Service,104256,Advanced Demand Side Management Limited,Advanced Demand Side Management Limited,Operational Responses,5,202409,01/11/2023,P6,9109374,"-5,919.09 ","5,919.09 ",2103,Water Rates,1019,West Bridgford,-266.50 ,
Nottinghamshire fire and Rescue Service,104256,Advanced Demand Side Management Limited,Advanced Demand Side Management Limited,Operational Responses,5,202409,01/11/2023,P6,9109374,"-5,919.09 ","5,919.09 ",2103,Water Rates,1019,West Bridgford,-206.73 ,
Nottinghamshire fire and Rescue Service,104256,Advanced Demand Side Management Limited,Advanced Demand Side Management Limited,Operational Responses,5,202409,01/11/2023,P6,9109374,"-5,919.09 ","5,919.09 ",2103,Water Rates,1019,West Bridgford,-204.84 ,
Nottinghamshire fire and Rescue Service,104256,Advanced Demand Side Management Limited,Advanced Demand Side Management Limited,Operational Responses,5,202409,01/11/2023,P6,9109374,"-5,919.09 ","5,919.09 ",2103,Water Rates,1019,West Bridgford,-19.73 ,
Nottinghamshire fire and Rescue Service,104256,Advanced Demand Side Management Limited,Advanced Demand Side Management Limited,Operational Responses,5,202409,01/11/2023,P6,9109374,"-5,919.09 ","5,919.09 ",2103,Water Rates,1019,West Bridgford,57.60 ,
Nottinghamshire fire and Rescue Service,104256,Advanced Demand Side Management Limited,Advanced Demand Side Management Limited,Operational Responses,5,202409,01/11/2023,P6,9109374,"-5,919.09 ","5,919.09 ",2103,Water Rates,1019,West Bridgford,123.71 ,
Nottinghamshire fire and Rescue Service,104256,Advanced Demand Side Management Limited,Advanced Demand Side Management Limited,Operational Responses,5,202409,01/11/2023,P6,9109374,"-5,919.09 ","5,919.09 ",2103,Water Rates,1019,West Bridgford,125.91 ,
Nottinghamshire fire and Rescue Service,104256,Advanced Demand Side Management Limited,Advanced Demand Side Management Limited,Operational Responses,5,202409,01/11/2023,P6,9109374,"-5,919.09 ","5,919.09 ",2103,Water Rates,1019,West Bridgford,126.48 ,
Nottinghamshire fire and Rescue Service,104256,Advanced Demand Side Management Limited,Advanced Demand Side Management Limited,Operational Responses,5,202409,01/11/2023,P6,9109374,"-5,919.09 ","5,919.09 ",2103,Water Rates,1019,West Bridgford,170.35 ,
Nottinghamshire fire and Rescue Service,104256,Advanced Demand Side Management Limited,Advanced Demand Side Management Limited,Operational Responses,5,202409,01/11/2023,P6,9109374,"-5,919.09 ","5,919.09 ",2103,Water Rates,1020,Stockhill,-8.96 ,
Nottinghamshire fire and Rescue Service,104256,Advanced Demand Side Management Limited,Advanced Demand Side Management Limited,Operational Responses,5,202409,01/11/2023,P6,9109374,"-5,919.09 ","5,919.09 ",2103,Water Rates,1020,Stockhill,0.54 ,
Nottinghamshire fire and Rescue Service,104256,Advanced Demand Side Management Limited,Advanced Demand Side Management Limited,Operational Responses,5,202409,01/11/2023,P6,9109374,"-5,919.09 ","5,919.09 ",2103,Water Rates,1020,Stockhill,2.32 ,
Nottinghamshire fire and Rescue Service,104256,Advanced Demand Side Management Limited,Advanced Demand Side Management Limited,Operational Responses,5,202409,01/11/2023,P6,9109374,"-5,919.09 ","5,919.09 ",2103,Water Rates,1020,Stockhill,2.40 ,
Nottinghamshire fire and Rescue Service,104256,Advanced Demand Side Management Limited,Advanced Demand Side Management Limited,Operational Responses,5,202409,01/11/2023,P6,9109374,"-5,919.09 ","5,919.09 ",2103,Water Rates,1020,Stockhill,4.14 ,
Nottinghamshire fire and Rescue Service,104256,Advanced Demand Side Management Limited,Advanced Demand Side Management Limited,Operational Responses,5,202409,01/11/2023,P6,9109374,"-5,919.09 ","5,919.09 ",2103,Water Rates,1020,Stockhill,8.89 ,
Nottinghamshire fire and Rescue Service,104256,Advanced Demand Side Management Limited,Advanced Demand Side Management Limited,Operational Responses,5,202409,01/11/2023,P6,9109374,"-5,919.09 ","5,919.09 ",2103,Water Rates,1023,Stapleford,-77.56 ,
Nottinghamshire fire and Rescue Service,104256,Advanced Demand Side Management Limited,Advanced Demand Side Management Limited,Operational Responses,5,202409,01/11/2023,P6,9109374,"-5,919.09 ","5,919.09 ",2103,Water Rates,1023,Stapleford,-75.06 ,
Nottinghamshire fire and Rescue Service,104256,Advanced Demand Side Management Limited,Advanced Demand Side Management Limited,Operational Responses,5,202409,01/11/2023,P6,9109374,"-5,919.09 ","5,919.09 ",2103,Water Rates,1023,Stapleford,37.47 ,
Nottinghamshire fire and Rescue Service,104256,Advanced Demand Side Management Limited,Advanced Demand Side Management Limited,Operational Responses,5,202409,01/11/2023,P6,9109374,"-5,919.09 ","5,919.09 ",2103,Water Rates,1023,Stapleford,42.24 ,
Nottinghamshire fire and Rescue Service,104256,Advanced Demand Side Management Limited,Advanced Demand Side Management Limited,Operational Responses,5,202409,01/11/2023,P6,9109374,"-5,919.09 ","5,919.09 ",2103,Water Rates,1023,Stapleford,43.66 ,
Nottinghamshire fire and Rescue Service,104256,Advanced Demand Side Management Limited,Advanced Demand Side Management Limited,Operational Responses,5,202409,01/11/2023,P6,9109374,"-5,919.09 ","5,919.09 ",2103,Water Rates,1024,Eastwood,22.89 ,
Nottinghamshire fire and Rescue Service,104256,Advanced Demand Side Management Limited,Advanced Demand Side Management Limited,Operational Responses,5,202409,01/11/2023,P6,9109374,"-5,919.09 ","5,919.09 ",2103,Water Rates,1026,Arnold,-159.99 ,
Nottinghamshire fire and Rescue Service,104256,Advanced Demand Side Management Limited,Advanced Demand Side Management Limited,Operational Responses,5,202409,01/11/2023,P6,9109374,"-5,919.09 ","5,919.09 ",2103,Water Rates,1026,Arnold,-143.37 ,
Nottinghamshire fire and Rescue Service,104256,Advanced Demand Side Management Limited,Advanced Demand Side Management Limited,Operational Responses,5,202409,01/11/2023,P6,9109374,"-5,919.09 ","5,919.09 ",2103,Water Rates,1026,Arnold,88.37 ,
Nottinghamshire fire and Rescue Service,104256,Advanced Demand Side Management Limited,Advanced Demand Side Management Limited,Operational Responses,5,202409,01/11/2023,P6,9109374,"-5,919.09 ","5,919.09 ",2103,Water Rates,1026,Arnold,91.32 ,
Nottinghamshire fire and Rescue Service,104256,Advanced Demand Side Management Limited,Advanced Demand Side Management Limited,Operational Responses,5,202409,01/11/2023,P6,9109374,"-5,919.09 ","5,919.09 ",2103,Water Rates,1026,Arnold,92.37 ,
Nottinghamshire fire and Rescue Service,104256,Advanced Demand Side Management Limited,Advanced Demand Side Management Limited,Operational Responses,5,202409,01/11/2023,P6,9109374,"-5,919.09 ","5,919.09 ",2103,Water Rates,1027,Carlton,-36.75 ,
Nottinghamshire fire and Rescue Service,104256,Advanced Demand Side Management Limited,Advanced Demand Side Management Limited,Operational Responses,5,202409,01/11/2023,P6,9109374,"-5,919.09 ","5,919.09 ",2103,Water Rates,1027,Carlton,-35.56 ,
Nottinghamshire fire and Rescue Service,104256,Advanced Demand Side Management Limited,Advanced Demand Side Management Limited,Operational Responses,5,202409,01/11/2023,P6,9109374,"-5,919.09 ","5,919.09 ",2103,Water Rates,1027,Carlton,-15.05 ,
Nottinghamshire fire and Rescue Service,104256,Advanced Demand Side Management Limited,Advanced Demand Side Management Limited,Operational Responses,5,202409,01/11/2023,P6,9109374,"-5,919.09 ","5,919.09 ",2103,Water Rates,1027,Carlton,-14.56 ,
Nottinghamshire fire and Rescue Service,104256,Advanced Demand Side Management Limited,Advanced Demand Side Management Limited,Operational Responses,5,202409,01/11/2023,P6,9109374,"-5,919.09 ","5,919.09 ",2103,Water Rates,1027,Carlton,-2.57 ,
Nottinghamshire fire and Rescue Service,104256,Advanced Demand Side Management Limited,Advanced Demand Side Management Limited,Operational Responses,5,202409,01/11/2023,P6,9109374,"-5,919.09 ","5,919.09 ",2103,Water Rates,1028,East Leake,2.40 ,
Nottinghamshire fire and Rescue Service,104256,Advanced Demand Side Management Limited,Advanced Demand Side Management Limited,Operational Responses,5,202409,01/11/2023,P6,9109374,"-5,919.09 ","5,919.09 ",2103,Water Rates,1029,Highfields Station,272.91 ,
Nottinghamshire fire and Rescue Service,104256,Advanced Demand Side Management Limited,Advanced Demand Side Management Limited,Management & Support Services,5,202409,01/11/2023,P6,9109374,"-5,919.09 ","5,919.09 ",2103,Water Rates,1030,Service Development Centre,"-1,077.77 ",
Nottinghamshire fire and Rescue Service,104256,Advanced Demand Side Management Limited,Advanced Demand Side Management Limited,Management & Support Services,5,202409,01/11/2023,P6,9109374,"-5,919.09 ","5,919.09 ",2103,Water Rates,1030,Service Development Centre,513.04 ,
Nottinghamshire fire and Rescue Service,104256,Advanced Demand Side Management Limited,Advanced Demand Side Management Limited,Management & Support Services,5,202409,01/11/2023,P6,9109374,"-5,919.09 ","5,919.09 ",2103,Water Rates,1030,Service Development Centre,539.00 ,
Nottinghamshire fire and Rescue Service,104256,Advanced Demand Side Management Limited,Advanced Demand Side Management Limited,Management & Support Services,5,202409,01/11/2023,P6,9109374,"-5,919.09 ","5,919.09 ",2103,Water Rates,1035,Headquarters,260.56 ,
Nottinghamshire fire and Rescue Service,104256,Advanced Demand Side Management Limited,Advanced Demand Side Management Limited,Prevention & Education,5,202409,01/11/2023,P6,9109374,"-5,919.09 ","5,919.09 ",2103,Water Rates,1036,Clifton Community Safety Centre,14.02 ,
Nottinghamshire fire and Rescue Service,104256,Advanced Demand Side Management Limited,Advanced Demand Side Management Limited,Operational Responses,5,202409,01/11/2023,P6,9109374,"-5,919.09 ","5,919.09 ",2104,Sewerage and Environmental,1001,Mansfield,-4.51 ,
Nottinghamshire fire and Rescue Service,104256,Advanced Demand Side Management Limited,Advanced Demand Side Management Limited,Operational Responses,5,202409,01/11/2023,P6,9109374,"-5,919.09 ","5,919.09 ",2104,Sewerage and Environmental,1001,Mansfield,15.39 ,
Nottinghamshire fire and Rescue Service,104256,Advanced Demand Side Management Limited,Advanced Demand Side Management Limited,Operational Responses,5,202409,01/11/2023,P6,9109374,"-5,919.09 ","5,919.09 ",2104,Sewerage and Environmental,1001,Mansfield,17.99 ,
Nottinghamshire fire and Rescue Service,104256,Advanced Demand Side Management Limited,Advanced Demand Side Management Limited,Operational Responses,5,202409,01/11/2023,P6,9109374,"-5,919.09 ","5,919.09 ",2104,Sewerage and Environmental,1001,Mansfield,209.52 ,
Nottinghamshire fire and Rescue Service,104256,Advanced Demand Side Management Limited,Advanced Demand Side Management Limited,Operational Responses,5,202409,01/11/2023,P6,9109374,"-5,919.09 ","5,919.09 ",2104,Sewerage and Environmental,1002,Blidworth,-14.54 ,
Nottinghamshire fire and Rescue Service,104256,Advanced Demand Side Management Limited,Advanced Demand Side Management Limited,Operational Responses,5,202409,01/11/2023,P6,9109374,"-5,919.09 ","5,919.09 ",2104,Sewerage and Environmental,1002,Blidworth,-14.07 ,
Nottinghamshire fire and Rescue Service,104256,Advanced Demand Side Management Limited,Advanced Demand Side Management Limited,Operational Responses,5,202409,01/11/2023,P6,9109374,"-5,919.09 ","5,919.09 ",2104,Sewerage and Environmental,1002,Blidworth,11.75 ,
Nottinghamshire fire and Rescue Service,104256,Advanced Demand Side Management Limited,Advanced Demand Side Management Limited,Operational Responses,5,202409,01/11/2023,P6,9109374,"-5,919.09 ","5,919.09 ",2104,Sewerage and Environmental,1002,Blidworth,12.14 ,
Nottinghamshire fire and Rescue Service,104256,Advanced Demand Side Management Limited,Advanced Demand Side Management Limited,Operational Responses,5,202409,01/11/2023,P6,9109374,"-5,919.09 ","5,919.09 ",2104,Sewerage and Environmental,1002,Blidworth,12.18 ,
Nottinghamshire fire and Rescue Service,104256,Advanced Demand Side Management Limited,Advanced Demand Side Management Limited,Operational Responses,5,202409,01/11/2023,P6,9109374,"-5,919.09 ","5,919.09 ",2104,Sewerage and Environmental,1003,London Road,47.43 ,
Nottinghamshire fire and Rescue Service,104256,Advanced Demand Side Management Limited,Advanced Demand Side Management Limited,Operational Responses,5,202409,01/11/2023,P6,9109374,"-5,919.09 ","5,919.09 ",2104,Sewerage and Environmental,1005,Ashfield,-58.56 ,
Nottinghamshire fire and Rescue Service,104256,Advanced Demand Side Management Limited,Advanced Demand Side Management Limited,Operational Responses,5,202409,01/11/2023,P6,9109374,"-5,919.09 ","5,919.09 ",2104,Sewerage and Environmental,1005,Ashfield,-56.66 ,
Nottinghamshire fire and Rescue Service,104256,Advanced Demand Side Management Limited,Advanced Demand Side Management Limited,Operational Responses,5,202409,01/11/2023,P6,9109374,"-5,919.09 ","5,919.09 ",2104,Sewerage and Environmental,1005,Ashfield,101.30 ,
Nottinghamshire fire and Rescue Service,104256,Advanced Demand Side Management Limited,Advanced Demand Side Management Limited,Operational Responses,5,202409,01/11/2023,P6,9109374,"-5,919.09 ","5,919.09 ",2104,Sewerage and Environmental,1005,Ashfield,102.82 ,
Nottinghamshire fire and Rescue Service,104256,Advanced Demand Side Management Limited,Advanced Demand Side Management Limited,Operational Responses,5,202409,01/11/2023,P6,9109374,"-5,919.09 ","5,919.09 ",2104,Sewerage and Environmental,1005,Ashfield,106.25 ,
Nottinghamshire fire and Rescue Service,104256,Advanced Demand Side Management Limited,Advanced Demand Side Management Limited,Operational Responses,5,202409,01/11/2023,P6,9109374,"-5,919.09 ","5,919.09 ",2104,Sewerage and Environmental,1006,Edwinstowe,-106.44 ,
Nottinghamshire fire and Rescue Service,104256,Advanced Demand Side Management Limited,Advanced Demand Side Management Limited,Operational Responses,5,202409,01/11/2023,P6,9109374,"-5,919.09 ","5,919.09 ",2104,Sewerage and Environmental,1006,Edwinstowe,141.42 ,
Nottinghamshire fire and Rescue Service,104256,Advanced Demand Side Management Limited,Advanced Demand Side Management Limited,Operational Responses,5,202409,01/11/2023,P6,9109374,"-5,919.09 ","5,919.09 ",2104,Sewerage and Environmental,1006,Edwinstowe,144.26 ,
Nottinghamshire fire and Rescue Service,104256,Advanced Demand Side Management Limited,Advanced Demand Side Management Limited,Operational Responses,5,202409,01/11/2023,P6,9109374,"-5,919.09 ","5,919.09 ",2104,Sewerage and Environmental,1007,Warsop,-4.66 ,
Nottinghamshire fire and Rescue Service,104256,Advanced Demand Side Management Limited,Advanced Demand Side Management Limited,Operational Responses,5,202409,01/11/2023,P6,9109374,"-5,919.09 ","5,919.09 ",2104,Sewerage and Environmental,1007,Warsop,-4.51 ,
Nottinghamshire fire and Rescue Service,104256,Advanced Demand Side Management Limited,Advanced Demand Side Management Limited,Operational Responses,5,202409,01/11/2023,P6,9109374,"-5,919.09 ","5,919.09 ",2104,Sewerage and Environmental,1007,Warsop,10.61 ,
Nottinghamshire fire and Rescue Service,104256,Advanced Demand Side Management Limited,Advanced Demand Side Management Limited,Operational Responses,5,202409,01/11/2023,P6,9109374,"-5,919.09 ","5,919.09 ",2104,Sewerage and Environmental,1007,Warsop,12.26 ,
Nottinghamshire fire and Rescue Service,104256,Advanced Demand Side Management Limited,Advanced Demand Side Management Limited,Operational Responses,5,202409,01/11/2023,P6,9109374,"-5,919.09 ","5,919.09 ",2104,Sewerage and Environmental,1007,Warsop,13.30 ,
Nottinghamshire fire and Rescue Service,104256,Advanced Demand Side Management Limited,Advanced Demand Side Management Limited,Operational Responses,5,202409,01/11/2023,P6,9109374,"-5,919.09 ","5,919.09 ",2104,Sewerage and Environmental,1008,Worksop,559.04 ,
Nottinghamshire fire and Rescue Service,104256,Advanced Demand Side Management Limited,Advanced Demand Side Management Limited,Operational Responses,5,202409,01/11/2023,P6,9109374,"-5,919.09 ","5,919.09 ",2104,Sewerage and Environmental,1010,Harworth,-4.66 ,
Nottinghamshire fire and Rescue Service,104256,Advanced Demand Side Management Limited,Advanced Demand Side Management Limited,Operational Responses,5,202409,01/11/2023,P6,9109374,"-5,919.09 ","5,919.09 ",2104,Sewerage and Environmental,1010,Harworth,-4.51 ,
Nottinghamshire fire and Rescue Service,104256,Advanced Demand Side Management Limited,Advanced Demand Side Management Limited,Operational Responses,5,202409,01/11/2023,P6,9109374,"-5,919.09 ","5,919.09 ",2104,Sewerage and Environmental,1010,Harworth,9.47 ,
Nottinghamshire fire and Rescue Service,104256,Advanced Demand Side Management Limited,Advanced Demand Side Management Limited,Operational Responses,5,202409,01/11/2023,P6,9109374,"-5,919.09 ","5,919.09 ",2104,Sewerage and Environmental,1010,Harworth,11.09 ,
Nottinghamshire fire and Rescue Service,104256,Advanced Demand Side Management Limited,Advanced Demand Side Management Limited,Operational Responses,5,202409,01/11/2023,P6,9109374,"-5,919.09 ","5,919.09 ",2104,Sewerage and Environmental,1010,Harworth,14.21 ,
Nottinghamshire fire and Rescue Service,104256,Advanced Demand Side Management Limited,Advanced Demand Side Management Limited,Operational Responses,5,202409,01/11/2023,P6,9109374,"-5,919.09 ","5,919.09 ",2104,Sewerage and Environmental,1010,Harworth,16.68 ,
Nottinghamshire fire and Rescue Service,104256,Advanced Demand Side Management Limited,Advanced Demand Side Management Limited,Operational Responses,5,202409,01/11/2023,P6,9109374,"-5,919.09 ","5,919.09 ",2104,Sewerage and Environmental,1011,Misterton,41.41 ,
Nottinghamshire fire and Rescue Service,104256,Advanced Demand Side Management Limited,Advanced Demand Side Management Limited,Operational Responses,5,202409,01/11/2023,P6,9109374,"-5,919.09 ","5,919.09 ",2104,Sewerage and Environmental,1012,Retford,-2.82 ,
Nottinghamshire fire and Rescue Service,104256,Advanced Demand Side Management Limited,Advanced Demand Side Management Limited,Operational Responses,5,202409,01/11/2023,P6,9109374,"-5,919.09 ","5,919.09 ",2104,Sewerage and Environmental,1012,Retford,-2.73 ,
Nottinghamshire fire and Rescue Service,104256,Advanced Demand Side Management Limited,Advanced Demand Side Management Limited,Operational Responses,5,202409,01/11/2023,P6,9109374,"-5,919.09 ","5,919.09 ",2104,Sewerage and Environmental,1012,Retford,26.17 ,
Nottinghamshire fire and Rescue Service,104256,Advanced Demand Side Management Limited,Advanced Demand Side Management Limited,Operational Responses,5,202409,01/11/2023,P6,9109374,"-5,919.09 ","5,919.09 ",2104,Sewerage and Environmental,1012,Retford,27.03 ,
Nottinghamshire fire and Rescue Service,104256,Advanced Demand Side Management Limited,Advanced Demand Side Management Limited,Operational Responses,5,202409,01/11/2023,P6,9109374,"-5,919.09 ","5,919.09 ",2104,Sewerage and Environmental,1012,Retford,106.44 ,
Nottinghamshire fire and Rescue Service,104256,Advanced Demand Side Management Limited,Advanced Demand Side Management Limited,Operational Responses,5,202409,01/11/2023,P6,9109374,"-5,919.09 ","5,919.09 ",2104,Sewerage and Environmental,1012,Retford,106.55 ,
Nottinghamshire fire and Rescue Service,104256,Advanced Demand Side Management Limited,Advanced Demand Side Management Limited,Operational Responses,5,202409,01/11/2023,P6,9109374,"-5,919.09 ","5,919.09 ",2104,Sewerage and Environmental,1013,Tuxford,-109.13 ,
Nottinghamshire fire and Rescue Service,104256,Advanced Demand Side Management Limited,Advanced Demand Side Management Limited,Operational Responses,5,202409,01/11/2023,P6,9109374,"-5,919.09 ","5,919.09 ",2104,Sewerage and Environmental,1013,Tuxford,-105.61 ,
Nottinghamshire fire and Rescue Service,104256,Advanced Demand Side Management Limited,Advanced Demand Side Management Limited,Operational Responses,5,202409,01/11/2023,P6,9109374,"-5,919.09 ","5,919.09 ",2104,Sewerage and Environmental,1013,Tuxford,116.54 ,
Nottinghamshire fire and Rescue Service,104256,Advanced Demand Side Management Limited,Advanced Demand Side Management Limited,Operational Responses,5,202409,01/11/2023,P6,9109374,"-5,919.09 ","5,919.09 ",2104,Sewerage and Environmental,1013,Tuxford,120.42 ,
Nottinghamshire fire and Rescue Service,104256,Advanced Demand Side Management Limited,Advanced Demand Side Management Limited,Operational Responses,5,202409,01/11/2023,P6,9109374,"-5,919.09 ","5,919.09 ",2104,Sewerage and Environmental,1013,Tuxford,150.27 ,
Nottinghamshire fire and Rescue Service,104256,Advanced Demand Side Management Limited,Advanced Demand Side Management Limited,Operational Responses,5,202409,01/11/2023,P6,9109374,"-5,919.09 ","5,919.09 ",2104,Sewerage and Environmental,1014,Southwell,88.95 ,
Nottinghamshire fire and Rescue Service,104256,Advanced Demand Side Management Limited,Advanced Demand Side Management Limited,Operational Responses,5,202409,01/11/2023,P6,9109374,"-5,919.09 ","5,919.09 ",2104,Sewerage and Environmental,1015,Collingham,70.17 ,
Nottinghamshire fire and Rescue Service,104256,Advanced Demand Side Management Limited,Advanced Demand Side Management Limited,Operational Responses,5,202409,01/11/2023,P6,9109374,"-5,919.09 ","5,919.09 ",2104,Sewerage and Environmental,1016,Newark,-352.08 ,
Nottinghamshire fire and Rescue Service,104256,Advanced Demand Side Management Limited,Advanced Demand Side Management Limited,Operational Responses,5,202409,01/11/2023,P6,9109374,"-5,919.09 ","5,919.09 ",2104,Sewerage and Environmental,1016,Newark,-340.73 ,
Nottinghamshire fire and Rescue Service,104256,Advanced Demand Side Management Limited,Advanced Demand Side Management Limited,Operational Responses,5,202409,01/11/2023,P6,9109374,"-5,919.09 ","5,919.09 ",2104,Sewerage and Environmental,1016,Newark,183.90 ,
Nottinghamshire fire and Rescue Service,104256,Advanced Demand Side Management Limited,Advanced Demand Side Management Limited,Operational Responses,5,202409,01/11/2023,P6,9109374,"-5,919.09 ","5,919.09 ",2104,Sewerage and Environmental,1016,Newark,399.76 ,
Nottinghamshire fire and Rescue Service,104256,Advanced Demand Side Management Limited,Advanced Demand Side Management Limited,Operational Responses,5,202409,01/11/2023,P6,9109374,"-5,919.09 ","5,919.09 ",2104,Sewerage and Environmental,1016,Newark,412.48 ,
Nottinghamshire fire and Rescue Service,104256,Advanced Demand Side Management Limited,Advanced Demand Side Management Limited,Operational Responses,5,202409,01/11/2023,P6,9109374,"-5,919.09 ","5,919.09 ",2104,Sewerage and Environmental,1016,Newark,413.07 ,
Nottinghamshire fire and Rescue Service,104256,Advanced Demand Side Management Limited,Advanced Demand Side Management Limited,Operational Responses,5,202409,01/11/2023,P6,9109374,"-5,919.09 ","5,919.09 ",2104,Sewerage and Environmental,1017,Bingham,-78.26 ,
Nottinghamshire fire and Rescue Service,104256,Advanced Demand Side Management Limited,Advanced Demand Side Management Limited,Operational Responses,5,202409,01/11/2023,P6,9109374,"-5,919.09 ","5,919.09 ",2104,Sewerage and Environmental,1017,Bingham,82.28 ,
Nottinghamshire fire and Rescue Service,104256,Advanced Demand Side Management Limited,Advanced Demand Side Management Limited,Operational Responses,5,202409,01/11/2023,P6,9109374,"-5,919.09 ","5,919.09 ",2104,Sewerage and Environmental,1017,Bingham,86.30 ,
Nottinghamshire fire and Rescue Service,104256,Advanced Demand Side Management Limited,Advanced Demand Side Management Limited,Operational Responses,5,202409,01/11/2023,P6,9109374,"-5,919.09 ","5,919.09 ",2104,Sewerage and Environmental,1019,West Bridgford,-186.30 ,
Nottinghamshire fire and Rescue Service,104256,Advanced Demand Side Management Limited,Advanced Demand Side Management Limited,Operational Responses,5,202409,01/11/2023,P6,9109374,"-5,919.09 ","5,919.09 ",2104,Sewerage and Environmental,1019,West Bridgford,-180.29 ,
Nottinghamshire fire and Rescue Service,104256,Advanced Demand Side Management Limited,Advanced Demand Side Management Limited,Operational Responses,5,202409,01/11/2023,P6,9109374,"-5,919.09 ","5,919.09 ",2104,Sewerage and Environmental,1019,West Bridgford,214.79 ,
Nottinghamshire fire and Rescue Service,104256,Advanced Demand Side Management Limited,Advanced Demand Side Management Limited,Operational Responses,5,202409,01/11/2023,P6,9109374,"-5,919.09 ","5,919.09 ",2104,Sewerage and Environmental,1019,West Bridgford,258.83 ,
Nottinghamshire fire and Rescue Service,104256,Advanced Demand Side Management Limited,Advanced Demand Side Management Limited,Operational Responses,5,202409,01/11/2023,P6,9109374,"-5,919.09 ","5,919.09 ",2104,Sewerage and Environmental,1019,West Bridgford,266.17 ,
Nottinghamshire fire and Rescue Service,104256,Advanced Demand Side Management Limited,Advanced Demand Side Management Limited,Operational Responses,5,202409,01/11/2023,P6,9109374,"-5,919.09 ","5,919.09 ",2104,Sewerage and Environmental,1019,West Bridgford,266.55 ,
Nottinghamshire fire and Rescue Service,104256,Advanced Demand Side Management Limited,Advanced Demand Side Management Limited,Operational Responses,5,202409,01/11/2023,P6,9109374,"-5,919.09 ","5,919.09 ",2104,Sewerage and Environmental,1019,West Bridgford,295.77 ,
Nottinghamshire fire and Rescue Service,104256,Advanced Demand Side Management Limited,Advanced Demand Side Management Limited,Operational Responses,5,202409,01/11/2023,P6,9109374,"-5,919.09 ","5,919.09 ",2104,Sewerage and Environmental,1020,Stockhill,-186.30 ,
Nottinghamshire fire and Rescue Service,104256,Advanced Demand Side Management Limited,Advanced Demand Side Management Limited,Operational Responses,5,202409,01/11/2023,P6,9109374,"-5,919.09 ","5,919.09 ",2104,Sewerage and Environmental,1020,Stockhill,-180.29 ,
Nottinghamshire fire and Rescue Service,104256,Advanced Demand Side Management Limited,Advanced Demand Side Management Limited,Operational Responses,5,202409,01/11/2023,P6,9109374,"-5,919.09 ","5,919.09 ",2104,Sewerage and Environmental,1020,Stockhill,176.79 ,
Nottinghamshire fire and Rescue Service,104256,Advanced Demand Side Management Limited,Advanced Demand Side Management Limited,Operational Responses,5,202409,01/11/2023,P6,9109374,"-5,919.09 ","5,919.09 ",2104,Sewerage and Environmental,1020,Stockhill,177.97 ,
Nottinghamshire fire and Rescue Service,104256,Advanced Demand Side Management Limited,Advanced Demand Side Management Limited,Operational Responses,5,202409,01/11/2023,P6,9109374,"-5,919.09 ","5,919.09 ",2104,Sewerage and Environmental,1020,Stockhill,183.90 ,
Nottinghamshire fire and Rescue Service,104256,Advanced Demand Side Management Limited,Advanced Demand Side Management Limited,Operational Responses,5,202409,01/11/2023,P6,9109374,"-5,919.09 ","5,919.09 ",2104,Sewerage and Environmental,1020,Stockhill,185.07 ,
Nottinghamshire fire and Rescue Service,104256,Advanced Demand Side Management Limited,Advanced Demand Side Management Limited,Operational Responses,5,202409,01/11/2023,P6,9109374,"-5,919.09 ","5,919.09 ",2104,Sewerage and Environmental,1023,Stapleford,-80.86 ,
Nottinghamshire fire and Rescue Service,104256,Advanced Demand Side Management Limited,Advanced Demand Side Management Limited,Operational Responses,5,202409,01/11/2023,P6,9109374,"-5,919.09 ","5,919.09 ",2104,Sewerage and Environmental,1023,Stapleford,-78.26 ,
Nottinghamshire fire and Rescue Service,104256,Advanced Demand Side Management Limited,Advanced Demand Side Management Limited,Operational Responses,5,202409,01/11/2023,P6,9109374,"-5,919.09 ","5,919.09 ",2104,Sewerage and Environmental,1023,Stapleford,101.82 ,
Nottinghamshire fire and Rescue Service,104256,Advanced Demand Side Management Limited,Advanced Demand Side Management Limited,Operational Responses,5,202409,01/11/2023,P6,9109374,"-5,919.09 ","5,919.09 ",2104,Sewerage and Environmental,1023,Stapleford,102.54 ,
Nottinghamshire fire and Rescue Service,104256,Advanced Demand Side Management Limited,Advanced Demand Side Management Limited,Operational Responses,5,202409,01/11/2023,P6,9109374,"-5,919.09 ","5,919.09 ",2104,Sewerage and Environmental,1023,Stapleford,105.94 ,
Nottinghamshire fire and Rescue Service,104256,Advanced Demand Side Management Limited,Advanced Demand Side Management Limited,Operational Responses,5,202409,01/11/2023,P6,9109374,"-5,919.09 ","5,919.09 ",2104,Sewerage and Environmental,1024,Eastwood,52.68 ,
Nottinghamshire fire and Rescue Service,104256,Advanced Demand Side Management Limited,Advanced Demand Side Management Limited,Operational Responses,5,202409,01/11/2023,P6,9109374,"-5,919.09 ","5,919.09 ",2104,Sewerage and Environmental,1026,Arnold,-110.97 ,
Nottinghamshire fire and Rescue Service,104256,Advanced Demand Side Management Limited,Advanced Demand Side Management Limited,Operational Responses,5,202409,01/11/2023,P6,9109374,"-5,919.09 ","5,919.09 ",2104,Sewerage and Environmental,1026,Arnold,-107.39 ,
Nottinghamshire fire and Rescue Service,104256,Advanced Demand Side Management Limited,Advanced Demand Side Management Limited,Operational Responses,5,202409,01/11/2023,P6,9109374,"-5,919.09 ","5,919.09 ",2104,Sewerage and Environmental,1026,Arnold,162.39 ,
Nottinghamshire fire and Rescue Service,104256,Advanced Demand Side Management Limited,Advanced Demand Side Management Limited,Operational Responses,5,202409,01/11/2023,P6,9109374,"-5,919.09 ","5,919.09 ",2104,Sewerage and Environmental,1026,Arnold,167.80 ,
Nottinghamshire fire and Rescue Service,104256,Advanced Demand Side Management Limited,Advanced Demand Side Management Limited,Operational Responses,5,202409,01/11/2023,P6,9109374,"-5,919.09 ","5,919.09 ",2104,Sewerage and Environmental,1026,Arnold,168.49 ,
Nottinghamshire fire and Rescue Service,104256,Advanced Demand Side Management Limited,Advanced Demand Side Management Limited,Operational Responses,5,202409,01/11/2023,P6,9109374,"-5,919.09 ","5,919.09 ",2104,Sewerage and Environmental,1027,Carlton,-188.94 ,
Nottinghamshire fire and Rescue Service,104256,Advanced Demand Side Management Limited,Advanced Demand Side Management Limited,Operational Responses,5,202409,01/11/2023,P6,9109374,"-5,919.09 ","5,919.09 ",2104,Sewerage and Environmental,1027,Carlton,-182.85 ,
Nottinghamshire fire and Rescue Service,104256,Advanced Demand Side Management Limited,Advanced Demand Side Management Limited,Operational Responses,5,202409,01/11/2023,P6,9109374,"-5,919.09 ","5,919.09 ",2104,Sewerage and Environmental,1027,Carlton,165.02 ,
Nottinghamshire fire and Rescue Service,104256,Advanced Demand Side Management Limited,Advanced Demand Side Management Limited,Operational Responses,5,202409,01/11/2023,P6,9109374,"-5,919.09 ","5,919.09 ",2104,Sewerage and Environmental,1027,Carlton,170.52 ,
Nottinghamshire fire and Rescue Service,104256,Advanced Demand Side Management Limited,Advanced Demand Side Management Limited,Operational Responses,5,202409,01/11/2023,P6,9109374,"-5,919.09 ","5,919.09 ",2104,Sewerage and Environmental,1027,Carlton,178.83 ,
Nottinghamshire fire and Rescue Service,104256,Advanced Demand Side Management Limited,Advanced Demand Side Management Limited,Operational Responses,5,202409,01/11/2023,P6,9109374,"-5,919.09 ","5,919.09 ",2104,Sewerage and Environmental,1028,East Leake,2.26 ,
Nottinghamshire fire and Rescue Service,104256,Advanced Demand Side Management Limited,Advanced Demand Side Management Limited,Operational Responses,5,202409,01/11/2023,P6,9109374,"-5,919.09 ","5,919.09 ",2104,Sewerage and Environmental,1029,Highfields Station,182.24 ,
Nottinghamshire fire and Rescue Service,104256,Advanced Demand Side Management Limited,Advanced Demand Side Management Limited,Management & Support Services,5,202409,01/11/2023,P6,9109374,"-5,919.09 ","5,919.09 ",2104,Sewerage and Environmental,1030,Service Development Centre,-4.78 ,
Nottinghamshire fire and Rescue Service,104256,Advanced Demand Side Management Limited,Advanced Demand Side Management Limited,Management & Support Services,5,202409,01/11/2023,P6,9109374,"-5,919.09 ","5,919.09 ",2104,Sewerage and Environmental,1030,Service Development Centre,342.19 ,
Nottinghamshire fire and Rescue Service,104256,Advanced Demand Side Management Limited,Advanced Demand Side Management Limited,Management & Support Services,5,202409,01/11/2023,P6,9109374,"-5,919.09 ","5,919.09 ",2104,Sewerage and Environmental,1030,Service Development Centre,359.48 ,
Nottinghamshire fire and Rescue Service,104256,Advanced Demand Side Management Limited,Advanced Demand Side Management Limited,Management & Support Services,5,202409,01/11/2023,P6,9109374,"-5,919.09 ","5,919.09 ",2104,Sewerage and Environmental,1035,Headquarters,174.02 ,
Nottinghamshire fire and Rescue Service,104256,Advanced Demand Side Management Limited,Advanced Demand Side Management Limited,Prevention & Education,5,202409,01/11/2023,P6,9109374,"-5,919.09 ","5,919.09 ",2104,Sewerage and Environmental,1036,Clifton Community Safety Centre,63.61 ,
Nottinghamshire fire and Rescue Service,101812,A B Waste Disposal Ltd,A B Waste Disposal Ltd,Management & Support Services,1,202409,01/12/2023,P6,9109454,-312.00 ,312.00 ,2106,Refuse / Trade Waste Collection,1030,Service Development Centre,260.00 ,
Nottinghamshire fire and Rescue Service,103280,Shred IT Limited,Shred IT Limited,Management & Support Services,5,202409,31/10/2023,P6,9109458,-288.00 ,288.00 ,2106,Refuse / Trade Waste Collection,2086,Procurement,240.00 ,
Nottinghamshire fire and Rescue Service,103847,Veolia ES UK Limited,Veolia ES UK Limited,Management & Support Services,5,202409,30/11/2023,P6,9109462,"-1,437.38 ","1,437.38 ",2106,Refuse / Trade Waste Collection,2086,Procurement,"1,197.82 ",
Nottinghamshire fire and Rescue Service,103280,Shred IT Limited,Shred IT Limited,Management & Support Services,5,202409,31/08/2023,P6,9109497,-291.60 ,291.60 ,2106,Refuse / Trade Waste Collection,2086,Procurement,243.00 ,
Nottinghamshire fire and Rescue Service,103280,Shred IT Limited,Shred IT Limited,Management & Support Services,5,202409,30/09/2023,P6,9109498,-336.00 ,336.00 ,2106,Refuse / Trade Waste Collection,2086,Procurement,280.00 ,
Nottinghamshire fire and Rescue Service,103847,Veolia ES UK Limited,Veolia ES UK Limited,Management & Support Services,5,202409,11/10/2023,P6,9109505,"-3,543.68 ","3,543.68 ",2106,Refuse / Trade Waste Collection,2086,Procurement,"2,953.07 ",
Nottinghamshire fire and Rescue Service,103603,Southwell Cathedral Chapter,Southwell Cathedral Chapter,Management & Support Services,5,202409,11/12/2023,P6,9109546,-500.00 ,500.00 ,2200,Rent of Premises,2093,Command Suite,500.00 ,
Nottinghamshire fire and Rescue Service,100557,NCC Sundry Debtors,NCC Sundry Debtors,Operational Responses,4,202409,01/12/2023,P6,9109393,"-1,980.19 ","1,980.19 ",2201,Grounds Maintenance,1001,Mansfield,38.10 ,
Nottinghamshire fire and Rescue Service,100557,NCC Sundry Debtors,NCC Sundry Debtors,Operational Responses,4,202409,01/12/2023,P6,9109393,"-1,980.19 ","1,980.19 ",2201,Grounds Maintenance,1002,Blidworth,67.84 ,
Nottinghamshire fire and Rescue Service,100557,NCC Sundry Debtors,NCC Sundry Debtors,Operational Responses,4,202409,01/12/2023,P6,9109393,"-1,980.19 ","1,980.19 ",2201,Grounds Maintenance,1003,London Road,46.25 ,
Nottinghamshire fire and Rescue Service,100557,NCC Sundry Debtors,NCC Sundry Debtors,Operational Responses,4,202409,01/12/2023,P6,9109393,"-1,980.19 ","1,980.19 ",2201,Grounds Maintenance,1005,Ashfield,218.75 ,
Nottinghamshire fire and Rescue Service,100557,NCC Sundry Debtors,NCC Sundry Debtors,Operational Responses,4,202409,01/12/2023,P6,9109393,"-1,980.19 ","1,980.19 ",2201,Grounds Maintenance,1006,Edwinstowe,45.28 ,
Nottinghamshire fire and Rescue Service,100557,NCC Sundry Debtors,NCC Sundry Debtors,Operational Responses,4,202409,01/12/2023,P6,9109393,"-1,980.19 ","1,980.19 ",2201,Grounds Maintenance,1007,Warsop,7.50 ,
Nottinghamshire fire and Rescue Service,100557,NCC Sundry Debtors,NCC Sundry Debtors,Operational Responses,4,202409,01/12/2023,P6,9109393,"-1,980.19 ","1,980.19 ",2201,Grounds Maintenance,1008,Worksop,45.85 ,
Nottinghamshire fire and Rescue Service,100557,NCC Sundry Debtors,NCC Sundry Debtors,Operational Responses,4,202409,01/12/2023,P6,9109393,"-1,980.19 ","1,980.19 ",2201,Grounds Maintenance,1010,Harworth,44.25 ,
Nottinghamshire fire and Rescue Service,100557,NCC Sundry Debtors,NCC Sundry Debtors,Operational Responses,4,202409,01/12/2023,P6,9109393,"-1,980.19 ","1,980.19 ",2201,Grounds Maintenance,1011,Misterton,39.50 ,
Nottinghamshire fire and Rescue Service,100557,NCC Sundry Debtors,NCC Sundry Debtors,Operational Responses,4,202409,01/12/2023,P6,9109393,"-1,980.19 ","1,980.19 ",2201,Grounds Maintenance,1012,Retford,26.76 ,
Nottinghamshire fire and Rescue Service,100557,NCC Sundry Debtors,NCC Sundry Debtors,Operational Responses,4,202409,01/12/2023,P6,9109393,"-1,980.19 ","1,980.19 ",2201,Grounds Maintenance,1013,Tuxford,30.00 ,
Nottinghamshire fire and Rescue Service,100557,NCC Sundry Debtors,NCC Sundry Debtors,Operational Responses,4,202409,01/12/2023,P6,9109393,"-1,980.19 ","1,980.19 ",2201,Grounds Maintenance,1014,Southwell,36.13 ,
Nottinghamshire fire and Rescue Service,100557,NCC Sundry Debtors,NCC Sundry Debtors,Operational Responses,4,202409,01/12/2023,P6,9109393,"-1,980.19 ","1,980.19 ",2201,Grounds Maintenance,1015,Collingham,40.80 ,
Nottinghamshire fire and Rescue Service,100557,NCC Sundry Debtors,NCC Sundry Debtors,Operational Responses,4,202409,01/12/2023,P6,9109393,"-1,980.19 ","1,980.19 ",2201,Grounds Maintenance,1016,Newark,40.00 ,
Nottinghamshire fire and Rescue Service,100557,NCC Sundry Debtors,NCC Sundry Debtors,Operational Responses,4,202409,01/12/2023,P6,9109393,"-1,980.19 ","1,980.19 ",2201,Grounds Maintenance,1017,Bingham,64.08 ,
Nottinghamshire fire and Rescue Service,100557,NCC Sundry Debtors,NCC Sundry Debtors,Operational Responses,4,202409,01/12/2023,P6,9109393,"-1,980.19 ","1,980.19 ",2201,Grounds Maintenance,1019,West Bridgford,84.48 ,
Nottinghamshire fire and Rescue Service,100557,NCC Sundry Debtors,NCC Sundry Debtors,Operational Responses,4,202409,01/12/2023,P6,9109393,"-1,980.19 ","1,980.19 ",2201,Grounds Maintenance,1020,Stockhill,216.10 ,
Nottinghamshire fire and Rescue Service,100557,NCC Sundry Debtors,NCC Sundry Debtors,Operational Responses,4,202409,01/12/2023,P6,9109393,"-1,980.19 ","1,980.19 ",2201,Grounds Maintenance,1023,Stapleford,80.50 ,
Nottinghamshire fire and Rescue Service,100557,NCC Sundry Debtors,NCC Sundry Debtors,Operational Responses,4,202409,01/12/2023,P6,9109393,"-1,980.19 ","1,980.19 ",2201,Grounds Maintenance,1024,Eastwood,28.75 ,
Nottinghamshire fire and Rescue Service,100557,NCC Sundry Debtors,NCC Sundry Debtors,Operational Responses,4,202409,01/12/2023,P6,9109393,"-1,980.19 ","1,980.19 ",2201,Grounds Maintenance,1026,Arnold,22.08 ,
Nottinghamshire fire and Rescue Service,100557,NCC Sundry Debtors,NCC Sundry Debtors,Operational Responses,4,202409,01/12/2023,P6,9109393,"-1,980.19 ","1,980.19 ",2201,Grounds Maintenance,1027,Carlton,39.58 ,
Nottinghamshire fire and Rescue Service,100557,NCC Sundry Debtors,NCC Sundry Debtors,Operational Responses,4,202409,01/12/2023,P6,9109393,"-1,980.19 ","1,980.19 ",2201,Grounds Maintenance,1028,East Leake,133.75 ,
Nottinghamshire fire and Rescue Service,100557,NCC Sundry Debtors,NCC Sundry Debtors,Operational Responses,4,202409,01/12/2023,P6,9109393,"-1,980.19 ","1,980.19 ",2201,Grounds Maintenance,1029,Highfields Station,97.08 ,
Nottinghamshire fire and Rescue Service,100557,NCC Sundry Debtors,NCC Sundry Debtors,Management & Support Services,4,202409,01/12/2023,P6,9109393,"-1,980.19 ","1,980.19 ",2201,Grounds Maintenance,1030,Service Development Centre,156.75 ,
Nottinghamshire fire and Rescue Service,100557,NCC Sundry Debtors,NCC Sundry Debtors,Operational Responses,4,202409,01/12/2023,P6,9109385,"-39,783.70 ","39,783.70 ",2204,Contract Cleaning,1001,Mansfield,"2,845.17 ",
Nottinghamshire fire and Rescue Service,100557,NCC Sundry Debtors,NCC Sundry Debtors,Operational Responses,4,202409,01/12/2023,P6,9109385,"-39,783.70 ","39,783.70 ",2204,Contract Cleaning,1002,Blidworth,268.77 ,
Nottinghamshire fire and Rescue Service,100557,NCC Sundry Debtors,NCC Sundry Debtors,Operational Responses,4,202409,01/12/2023,P6,9109385,"-39,783.70 ","39,783.70 ",2204,Contract Cleaning,1003,London Road,"3,037.54 ",
Nottinghamshire fire and Rescue Service,100557,NCC Sundry Debtors,NCC Sundry Debtors,Operational Responses,4,202409,01/12/2023,P6,9109385,"-39,783.70 ","39,783.70 ",2204,Contract Cleaning,1005,Ashfield,"1,498.54 ",
Nottinghamshire fire and Rescue Service,100557,NCC Sundry Debtors,NCC Sundry Debtors,Operational Responses,4,202409,01/12/2023,P6,9109385,"-39,783.70 ","39,783.70 ",2204,Contract Cleaning,1006,Edwinstowe,"1,152.27 ",
Nottinghamshire fire and Rescue Service,100557,NCC Sundry Debtors,NCC Sundry Debtors,Operational Responses,4,202409,01/12/2023,P6,9109385,"-39,783.70 ","39,783.70 ",2204,Contract Cleaning,1007,Warsop,230.29 ,
Nottinghamshire fire and Rescue Service,100557,NCC Sundry Debtors,NCC Sundry Debtors,Operational Responses,4,202409,01/12/2023,P6,9109385,"-39,783.70 ","39,783.70 ",2204,Contract Cleaning,1008,Worksop,"1,883.29 ",
Nottinghamshire fire and Rescue Service,100557,NCC Sundry Debtors,NCC Sundry Debtors,Operational Responses,4,202409,01/12/2023,P6,9109385,"-39,783.70 ","39,783.70 ",2204,Contract Cleaning,1010,Harworth,422.67 ,
Nottinghamshire fire and Rescue Service,100557,NCC Sundry Debtors,NCC Sundry Debtors,Operational Responses,4,202409,01/12/2023,P6,9109385,"-39,783.70 ","39,783.70 ",2204,Contract Cleaning,1011,Misterton,345.72 ,
Nottinghamshire fire and Rescue Service,100557,NCC Sundry Debtors,NCC Sundry Debtors,Operational Responses,4,202409,01/12/2023,P6,9109385,"-39,783.70 ","39,783.70 ",2204,Contract Cleaning,1012,Retford,"1,921.77 ",
Nottinghamshire fire and Rescue Service,100557,NCC Sundry Debtors,NCC Sundry Debtors,Operational Responses,4,202409,01/12/2023,P6,9109385,"-39,783.70 ","39,783.70 ",2204,Contract Cleaning,1013,Tuxford,268.77 ,
Nottinghamshire fire and Rescue Service,100557,NCC Sundry Debtors,NCC Sundry Debtors,Operational Responses,4,202409,01/12/2023,P6,9109385,"-39,783.70 ","39,783.70 ",2204,Contract Cleaning,1014,Southwell,384.19 ,
Nottinghamshire fire and Rescue Service,100557,NCC Sundry Debtors,NCC Sundry Debtors,Operational Responses,4,202409,01/12/2023,P6,9109385,"-39,783.70 ","39,783.70 ",2204,Contract Cleaning,1015,Collingham,384.19 ,
Nottinghamshire fire and Rescue Service,100557,NCC Sundry Debtors,NCC Sundry Debtors,Operational Responses,4,202409,01/12/2023,P6,9109385,"-39,783.70 ","39,783.70 ",2204,Contract Cleaning,1016,Newark,"1,498.54 ",
Nottinghamshire fire and Rescue Service,100557,NCC Sundry Debtors,NCC Sundry Debtors,Operational Responses,4,202409,01/12/2023,P6,9109385,"-39,783.70 ","39,783.70 ",2204,Contract Cleaning,1017,Bingham,268.77 ,
Nottinghamshire fire and Rescue Service,100557,NCC Sundry Debtors,NCC Sundry Debtors,Operational Responses,4,202409,01/12/2023,P6,9109385,"-39,783.70 ","39,783.70 ",2204,Contract Cleaning,1019,West Bridgford,"2,306.52 ",
Nottinghamshire fire and Rescue Service,100557,NCC Sundry Debtors,NCC Sundry Debtors,Operational Responses,4,202409,01/12/2023,P6,9109385,"-39,783.70 ","39,783.70 ",2204,Contract Cleaning,1020,Stockhill,"1,883.29 ",
Nottinghamshire fire and Rescue Service,100557,NCC Sundry Debtors,NCC Sundry Debtors,Operational Responses,4,202409,01/12/2023,P6,9109385,"-39,783.70 ","39,783.70 ",2204,Contract Cleaning,1023,Stapleford,615.04 ,
Nottinghamshire fire and Rescue Service,100557,NCC Sundry Debtors,NCC Sundry Debtors,Operational Responses,4,202409,01/12/2023,P6,9109385,"-39,783.70 ","39,783.70 ",2204,Contract Cleaning,1024,Eastwood,422.67 ,
Nottinghamshire fire and Rescue Service,100557,NCC Sundry Debtors,NCC Sundry Debtors,Operational Responses,4,202409,01/12/2023,P6,9109385,"-39,783.70 ","39,783.70 ",2204,Contract Cleaning,1026,Arnold,"1,402.35 ",
Nottinghamshire fire and Rescue Service,100557,NCC Sundry Debtors,NCC Sundry Debtors,Operational Responses,4,202409,01/12/2023,P6,9109385,"-39,783.70 ","39,783.70 ",2204,Contract Cleaning,1027,Carlton,"2,652.79 ",
Nottinghamshire fire and Rescue Service,100557,NCC Sundry Debtors,NCC Sundry Debtors,Operational Responses,4,202409,01/12/2023,P6,9109385,"-39,783.70 ","39,783.70 ",2204,Contract Cleaning,1028,East Leake,268.77 ,
Nottinghamshire fire and Rescue Service,100557,NCC Sundry Debtors,NCC Sundry Debtors,Operational Responses,4,202409,01/12/2023,P6,9109385,"-39,783.70 ","39,783.70 ",2204,Contract Cleaning,1029,Highfields Station,"5,075.59 ",
Nottinghamshire fire and Rescue Service,100557,NCC Sundry Debtors,NCC Sundry Debtors,Management & Support Services,4,202409,01/12/2023,P6,9109385,"-39,783.70 ","39,783.70 ",2204,Contract Cleaning,1030,Service Development Centre,"2,115.57 ",
Nottinghamshire fire and Rescue Service,100557,NCC Sundry Debtors,NCC Sundry Debtors,Operational Responses,4,202409,01/12/2023,P6,9109386,-864.00 ,864.00 ,2204,Contract Cleaning,1001,Mansfield,30.00 ,
Nottinghamshire fire and Rescue Service,100557,NCC Sundry Debtors,NCC Sundry Debtors,Operational Responses,4,202409,01/12/2023,P6,9109386,-864.00 ,864.00 ,2204,Contract Cleaning,1002,Blidworth,30.00 ,
Nottinghamshire fire and Rescue Service,100557,NCC Sundry Debtors,NCC Sundry Debtors,Operational Responses,4,202409,01/12/2023,P6,9109386,-864.00 ,864.00 ,2204,Contract Cleaning,1003,London Road,30.00 ,
Nottinghamshire fire and Rescue Service,100557,NCC Sundry Debtors,NCC Sundry Debtors,Operational Responses,4,202409,01/12/2023,P6,9109386,-864.00 ,864.00 ,2204,Contract Cleaning,1005,Ashfield,30.00 ,
Nottinghamshire fire and Rescue Service,100557,NCC Sundry Debtors,NCC Sundry Debtors,Operational Responses,4,202409,01/12/2023,P6,9109386,-864.00 ,864.00 ,2204,Contract Cleaning,1006,Edwinstowe,30.00 ,
Nottinghamshire fire and Rescue Service,100557,NCC Sundry Debtors,NCC Sundry Debtors,Operational Responses,4,202409,01/12/2023,P6,9109386,-864.00 ,864.00 ,2204,Contract Cleaning,1007,Warsop,30.00 ,
Nottinghamshire fire and Rescue Service,100557,NCC Sundry Debtors,NCC Sundry Debtors,Operational Responses,4,202409,01/12/2023,P6,9109386,-864.00 ,864.00 ,2204,Contract Cleaning,1008,Worksop,30.00 ,
Nottinghamshire fire and Rescue Service,100557,NCC Sundry Debtors,NCC Sundry Debtors,Operational Responses,4,202409,01/12/2023,P6,9109386,-864.00 ,864.00 ,2204,Contract Cleaning,1010,Harworth,30.00 ,
Nottinghamshire fire and Rescue Service,100557,NCC Sundry Debtors,NCC Sundry Debtors,Operational Responses,4,202409,01/12/2023,P6,9109386,-864.00 ,864.00 ,2204,Contract Cleaning,1011,Misterton,30.00 ,
Nottinghamshire fire and Rescue Service,100557,NCC Sundry Debtors,NCC Sundry Debtors,Operational Responses,4,202409,01/12/2023,P6,9109386,-864.00 ,864.00 ,2204,Contract Cleaning,1012,Retford,30.00 ,
Nottinghamshire fire and Rescue Service,100557,NCC Sundry Debtors,NCC Sundry Debtors,Operational Responses,4,202409,01/12/2023,P6,9109386,-864.00 ,864.00 ,2204,Contract Cleaning,1013,Tuxford,30.00 ,
Nottinghamshire fire and Rescue Service,100557,NCC Sundry Debtors,NCC Sundry Debtors,Operational Responses,4,202409,01/12/2023,P6,9109386,-864.00 ,864.00 ,2204,Contract Cleaning,1014,Southwell,30.00 ,
Nottinghamshire fire and Rescue Service,100557,NCC Sundry Debtors,NCC Sundry Debtors,Operational Responses,4,202409,01/12/2023,P6,9109386,-864.00 ,864.00 ,2204,Contract Cleaning,1015,Collingham,30.00 ,
Nottinghamshire fire and Rescue Service,100557,NCC Sundry Debtors,NCC Sundry Debtors,Operational Responses,4,202409,01/12/2023,P6,9109386,-864.00 ,864.00 ,2204,Contract Cleaning,1016,Newark,30.00 ,
Nottinghamshire fire and Rescue Service,100557,NCC Sundry Debtors,NCC Sundry Debtors,Operational Responses,4,202409,01/12/2023,P6,9109386,-864.00 ,864.00 ,2204,Contract Cleaning,1017,Bingham,30.00 ,
Nottinghamshire fire and Rescue Service,100557,NCC Sundry Debtors,NCC Sundry Debtors,Operational Responses,4,202409,01/12/2023,P6,9109386,-864.00 ,864.00 ,2204,Contract Cleaning,1019,West Bridgford,30.00 ,
Nottinghamshire fire and Rescue Service,100557,NCC Sundry Debtors,NCC Sundry Debtors,Operational Responses,4,202409,01/12/2023,P6,9109386,-864.00 ,864.00 ,2204,Contract Cleaning,1020,Stockhill,30.00 ,
Nottinghamshire fire and Rescue Service,100557,NCC Sundry Debtors,NCC Sundry Debtors,Operational Responses,4,202409,01/12/2023,P6,9109386,-864.00 ,864.00 ,2204,Contract Cleaning,1023,Stapleford,30.00 ,
Nottinghamshire fire and Rescue Service,100557,NCC Sundry Debtors,NCC Sundry Debtors,Operational Responses,4,202409,01/12/2023,P6,9109386,-864.00 ,864.00 ,2204,Contract Cleaning,1024,Eastwood,30.00 ,
Nottinghamshire fire and Rescue Service,100557,NCC Sundry Debtors,NCC Sundry Debtors,Operational Responses,4,202409,01/12/2023,P6,9109386,-864.00 ,864.00 ,2204,Contract Cleaning,1026,Arnold,30.00 ,
Nottinghamshire fire and Rescue Service,100557,NCC Sundry Debtors,NCC Sundry Debtors,Operational Responses,4,202409,01/12/2023,P6,9109386,-864.00 ,864.00 ,2204,Contract Cleaning,1027,Carlton,30.00 ,
Nottinghamshire fire and Rescue Service,100557,NCC Sundry Debtors,NCC Sundry Debtors,Operational Responses,4,202409,01/12/2023,P6,9109386,-864.00 ,864.00 ,2204,Contract Cleaning,1028,East Leake,30.00 ,
Nottinghamshire fire and Rescue Service,100557,NCC Sundry Debtors,NCC Sundry Debtors,Operational Responses,4,202409,01/12/2023,P6,9109386,-864.00 ,864.00 ,2204,Contract Cleaning,1029,Highfields Station,30.00 ,
Nottinghamshire fire and Rescue Service,100557,NCC Sundry Debtors,NCC Sundry Debtors,Management & Support Services,4,202409,01/12/2023,P6,9109386,-864.00 ,864.00 ,2204,Contract Cleaning,1030,Service Development Centre,30.00 ,
Nottinghamshire fire and Rescue Service,100557,NCC Sundry Debtors,NCC Sundry Debtors,Operational Responses,4,202409,01/12/2023,P6,9109387,-848.00 ,848.00 ,2205,Window Cleaning,1001,Mansfield,50.00 ,
Nottinghamshire fire and Rescue Service,100557,NCC Sundry Debtors,NCC Sundry Debtors,Operational Responses,4,202409,01/12/2023,P6,9109387,-848.00 ,848.00 ,2205,Window Cleaning,1002,Blidworth,20.00 ,
Nottinghamshire fire and Rescue Service,100557,NCC Sundry Debtors,NCC Sundry Debtors,Operational Responses,4,202409,01/12/2023,P6,9109387,-848.00 ,848.00 ,2205,Window Cleaning,1003,London Road,41.67 ,
Nottinghamshire fire and Rescue Service,100557,NCC Sundry Debtors,NCC Sundry Debtors,Operational Responses,4,202409,01/12/2023,P6,9109387,-848.00 ,848.00 ,2205,Window Cleaning,1005,Ashfield,33.33 ,
Nottinghamshire fire and Rescue Service,100557,NCC Sundry Debtors,NCC Sundry Debtors,Operational Responses,4,202409,01/12/2023,P6,9109387,-848.00 ,848.00 ,2205,Window Cleaning,1006,Edwinstowe,33.33 ,
Nottinghamshire fire and Rescue Service,100557,NCC Sundry Debtors,NCC Sundry Debtors,Operational Responses,4,202409,01/12/2023,P6,9109387,-848.00 ,848.00 ,2205,Window Cleaning,1007,Warsop,21.67 ,
Nottinghamshire fire and Rescue Service,100557,NCC Sundry Debtors,NCC Sundry Debtors,Operational Responses,4,202409,01/12/2023,P6,9109387,-848.00 ,848.00 ,2205,Window Cleaning,1008,Worksop,20.00 ,
Nottinghamshire fire and Rescue Service,100557,NCC Sundry Debtors,NCC Sundry Debtors,Operational Responses,4,202409,01/12/2023,P6,9109387,-848.00 ,848.00 ,2205,Window Cleaning,1010,Harworth,21.67 ,
Nottinghamshire fire and Rescue Service,100557,NCC Sundry Debtors,NCC Sundry Debtors,Operational Responses,4,202409,01/12/2023,P6,9109387,-848.00 ,848.00 ,2205,Window Cleaning,1011,Misterton,20.00 ,
Nottinghamshire fire and Rescue Service,100557,NCC Sundry Debtors,NCC Sundry Debtors,Operational Responses,4,202409,01/12/2023,P6,9109387,-848.00 ,848.00 ,2205,Window Cleaning,1012,Retford,50.00 ,
Nottinghamshire fire and Rescue Service,100557,NCC Sundry Debtors,NCC Sundry Debtors,Operational Responses,4,202409,01/12/2023,P6,9109387,-848.00 ,848.00 ,2205,Window Cleaning,1013,Tuxford,18.33 ,
Nottinghamshire fire and Rescue Service,100557,NCC Sundry Debtors,NCC Sundry Debtors,Operational Responses,4,202409,01/12/2023,P6,9109387,-848.00 ,848.00 ,2205,Window Cleaning,1014,Southwell,16.67 ,
Nottinghamshire fire and Rescue Service,100557,NCC Sundry Debtors,NCC Sundry Debtors,Operational Responses,4,202409,01/12/2023,P6,9109387,-848.00 ,848.00 ,2205,Window Cleaning,1015,Collingham,18.33 ,
Nottinghamshire fire and Rescue Service,100557,NCC Sundry Debtors,NCC Sundry Debtors,Operational Responses,4,202409,01/12/2023,P6,9109387,-848.00 ,848.00 ,2205,Window Cleaning,1016,Newark,25.00 ,
Nottinghamshire fire and Rescue Service,100557,NCC Sundry Debtors,NCC Sundry Debtors,Operational Responses,4,202409,01/12/2023,P6,9109387,-848.00 ,848.00 ,2205,Window Cleaning,1017,Bingham,16.67 ,
Nottinghamshire fire and Rescue Service,100557,NCC Sundry Debtors,NCC Sundry Debtors,Operational Responses,4,202409,01/12/2023,P6,9109387,-848.00 ,848.00 ,2205,Window Cleaning,1019,West Bridgford,50.00 ,
Nottinghamshire fire and Rescue Service,100557,NCC Sundry Debtors,NCC Sundry Debtors,Operational Responses,4,202409,01/12/2023,P6,9109387,-848.00 ,848.00 ,2205,Window Cleaning,1020,Stockhill,50.00 ,
Nottinghamshire fire and Rescue Service,100557,NCC Sundry Debtors,NCC Sundry Debtors,Operational Responses,4,202409,01/12/2023,P6,9109387,-848.00 ,848.00 ,2205,Window Cleaning,1023,Stapleford,18.33 ,
Nottinghamshire fire and Rescue Service,100557,NCC Sundry Debtors,NCC Sundry Debtors,Operational Responses,4,202409,01/12/2023,P6,9109387,-848.00 ,848.00 ,2205,Window Cleaning,1024,Eastwood,20.00 ,
Nottinghamshire fire and Rescue Service,100557,NCC Sundry Debtors,NCC Sundry Debtors,Operational Responses,4,202409,01/12/2023,P6,9109387,-848.00 ,848.00 ,2205,Window Cleaning,1026,Arnold,25.00 ,
Nottinghamshire fire and Rescue Service,100557,NCC Sundry Debtors,NCC Sundry Debtors,Operational Responses,4,202409,01/12/2023,P6,9109387,-848.00 ,848.00 ,2205,Window Cleaning,1027,Carlton,33.33 ,
Nottinghamshire fire and Rescue Service,100557,NCC Sundry Debtors,NCC Sundry Debtors,Operational Responses,4,202409,01/12/2023,P6,9109387,-848.00 ,848.00 ,2205,Window Cleaning,1028,East Leake,16.67 ,
Nottinghamshire fire and Rescue Service,100557,NCC Sundry Debtors,NCC Sundry Debtors,Operational Responses,4,202409,01/12/2023,P6,9109387,-848.00 ,848.00 ,2205,Window Cleaning,1029,Highfields Station,66.67 ,
Nottinghamshire fire and Rescue Service,100557,NCC Sundry Debtors,NCC Sundry Debtors,Management & Support Services,4,202409,01/12/2023,P6,9109387,-848.00 ,848.00 ,2205,Window Cleaning,1030,Service Development Centre,20.00 ,
Nottinghamshire fire and Rescue Service,102277,Mansfield Fire Station Museum,Mansfield Fire Station Museum,Operational Responses,1,202409,29/11/2023,P6,9109373,-900.00 ,900.00 ,2890,Insurance - Premises,2078,Mansfield Fire Station Museum,900.00 ,
Nottinghamshire fire and Rescue Service,100437,Nottinghamshire Fire Safety Limited,Nottinghamshire Fire Safety Limited,Management & Support Services,1,202409,30/11/2023,P6,9109403,-337.60 ,337.60 ,3100,Fleet Maintenance - Planned,2084,Engineering,281.34 ,
Nottinghamshire fire and Rescue Service,103820,VIA East Midlands Ltd,VIA East Midlands Ltd,Management & Support Services,5,202409,30/11/2023,P6,9109636,"-15,672.67 ","15,672.67 ",3100,Fleet Maintenance - Planned,2084,Engineering,"13,097.60 ",
Nottinghamshire fire and Rescue Service,102407,Emergency One (Uk) Limited,Emergency One (Uk) Limited,Management & Support Services,1,202409,13/12/2023,P6,9109562,"-2,137.20 ","2,137.20 ",3102,Vehicle Maintenance Outsourced,2084,Engineering,"1,781.00 ",
Nottinghamshire fire and Rescue Service,103820,VIA East Midlands Ltd,VIA East Midlands Ltd,Management & Support Services,5,202409,30/11/2023,P6,9109637,"-34,208.99 ","34,208.99 ",3103,Fleet Maintenance - Unplanned,2084,Engineering,"28,507.49 ",
Nottinghamshire fire and Rescue Service,103820,VIA East Midlands Ltd,VIA East Midlands Ltd,Management & Support Services,5,202409,30/11/2023,P6,9109603,-653.62 ,653.62 ,3104,Fleet - Accident Repairs,2084,Engineering,544.68 ,
Nottinghamshire fire and Rescue Service,103766,CERTAS,CERTAS,Operational Responses,5,202409,02/11/2023,P6,9109419,"-11,089.48 ","11,089.48 ",3200,Fuel - Vehicle,1026,Arnold,"9,241.23 ",
Nottinghamshire fire and Rescue Service,102558,Merridale Ltd,Merridale Ltd,Management & Support Services,1,202409,11/12/2023,P6,9109516,-680.20 ,680.20 ,3200,Fuel - Vehicle,2084,Engineering,566.83 ,
Nottinghamshire fire and Rescue Service,103766,CERTAS,CERTAS,Operational Responses,5,202409,11/12/2023,P6,9109517,"-6,418.88 ","6,418.88 ",3200,Fuel - Vehicle,1008,Worksop,"5,349.07 ",
Nottinghamshire fire and Rescue Service,103766,CERTAS,CERTAS,Management & Support Services,5,202409,24/11/2023,P6,9109531,"-1,714.02 ","1,714.02 ",3200,Fuel - Vehicle,2087,Estates Department (Previously Premises),"1,428.35 ",
Nottinghamshire fire and Rescue Service,103766,CERTAS,CERTAS,Operational Responses,5,202409,12/12/2023,P6,9109563,"-1,378.74 ","1,378.74 ",3200,Fuel - Vehicle,1011,Misterton,"1,148.95 ",
Nottinghamshire fire and Rescue Service,103766,CERTAS,CERTAS,Operational Responses,5,202409,15/12/2023,P6,9109616,"-9,560.04 ","9,560.04 ",3200,Fuel - Vehicle,1003,London Road,"7,966.70 ",
Nottinghamshire fire and Rescue Service,103766,CERTAS,CERTAS,Operational Responses,5,202409,01/11/2023,P6,9109617,"-11,142.00 ","11,142.00 ",3200,Fuel - Vehicle,1005,Ashfield,"9,285.00 ",
Nottinghamshire fire and Rescue Service,103942,The Lodge Tyre Co. Limited,The Lodge Tyre Co. Limited,Management & Support Services,5,202409,30/11/2023,P6,9109421,"-13,640.59 ","13,640.59 ",3202,Tyres,2084,Engineering,"11,367.21 ",
Nottinghamshire fire and Rescue Service,100321,Drivercheck Ltd,Drivercheck Ltd,Management & Support Services,1,202409,30/11/2023,P6,9109404,-755.10 ,755.10 ,3203,Motor Tax / Licenses,2084,Engineering,629.25 ,
Nottinghamshire fire and Rescue Service,100202,Enterprise Rent-A-Car,Enterprise Rent-A-Car,Management & Support Services,1,202409,30/11/2023,P6,9109420,"-1,229.00 ","1,229.00 ",3400,Hire of Fleet Vehicles,2084,Engineering,"1,024.16 ",
Nottinghamshire fire and Rescue Service,100202,Enterprise Rent-A-Car,Enterprise Rent-A-Car,Management & Support Services,1,202409,09/10/2023,P6,9109565,-306.71 ,306.71 ,3400,Hire of Fleet Vehicles,2084,Engineering,255.60 ,
Nottinghamshire fire and Rescue Service,102070,Life Safety Distribution AG,Life Safety Distribution AG,Management & Support Services,1,202409,29/11/2023,P6,9109394,"-1,305.60 ","1,305.60 ",4000,Operational Equipment Purchase,2084,Engineering,"1,088.00 ",
Nottinghamshire fire and Rescue Service,100408,Central Marine Services Ltd,Central Marine Services Ltd,Management & Support Services,1,202409,13/12/2023,P6,9109530,-366.90 ,366.90 ,4000,Operational Equipment Purchase,2084,Engineering,305.75 ,
Nottinghamshire fire and Rescue Service,102203,Flogas Britian Limited,Flogas Britian Limited,Management & Support Services,1,202409,15/12/2023,P6,9109633,"-1,289.57 ","1,289.57 ",4006,Oxygen and Other Gases,2084,Engineering,"1,074.64 ",
Nottinghamshire fire and Rescue Service,101890,Survitec Service & Distribution Ltd,Survitec Service & Distribution Ltd,Management & Support Services,1,202409,20/11/2023,P6,9109367,"-1,114.45 ","1,114.45 ",4007,Equipment Annual Service,2084,Engineering,928.71 ,
Nottinghamshire fire and Rescue Service,102261,Airwave Solutions Ltd,Airwave Solutions Ltd,Management & Support Services,1,202409,06/12/2023,P6,9109427,-949.78 ,949.78 ,4101,Computer Software Maintenance Contracts,2097,ICT Service Operations,791.49 ,
Nottinghamshire fire and Rescue Service,103483,Risual Limited,Risual Limited,Management & Support Services,5,202409,31/10/2023,P6,9109455,"-13,526.74 ","13,526.74 ",4101,Computer Software Maintenance Contracts,2097,ICT Service Operations,"11,272.28 ",
Nottinghamshire fire and Rescue Service,103373,GTT EMEA Ltd,GTT EMEA Ltd,Management & Support Services,5,202409,25/11/2023,P6,9109456,"-20,585.68 ","20,585.68 ",4101,Computer Software Maintenance Contracts,2095,ICT Digital Transformation,"17,154.73 ",
Nottinghamshire fire and Rescue Service,103483,Risual Limited,Risual Limited,Management & Support Services,5,202409,30/11/2023,P6,9109514,-270.00 ,270.00 ,4101,Computer Software Maintenance Contracts,2097,ICT Service Operations,225.00 ,
Nottinghamshire fire and Rescue Service,103214,Excelerate Technology Limited,Excelerate Technology Limited,Management & Support Services,5,202409,08/12/2023,P6,9109529,"-11,994.00 ","11,994.00 ",4101,Computer Software Maintenance Contracts,2097,ICT Service Operations,"9,995.00 ",
Nottinghamshire fire and Rescue Service,103498,Omniplex (Group) Limited,Omniplex (Group) Limited,Management & Support Services,5,202409,19/12/2023,P6,9109638,"-5,130.00 ","5,130.00 ",4101,Computer Software Maintenance Contracts,2097,ICT Service Operations,"4,275.00 ",
Nottinghamshire fire and Rescue Service,100467,Kingsfield Computer Products Ltd,Kingsfield Computer Products Ltd,Management & Support Services,1,202409,13/12/2023,P6,9109524,-460.80 ,460.80 ,4102,Computer Consumables,2097,ICT Service Operations,384.00 ,
Nottinghamshire fire and Rescue Service,103483,Risual Limited,Risual Limited,Management & Support Services,5,202409,30/11/2023,P6,9109348,"-1,140.00 ","1,140.00 ",4104,Non-Contracted Services - ICT,2096,ICT Service Transformation,950.00 ,
Nottinghamshire fire and Rescue Service,103483,Risual Limited,Risual Limited,Management & Support Services,5,202409,18/10/2023,P6,9109429,"-1,804.18 ","1,804.18 ",4301,Phones - Landline,2097,ICT Service Operations,"1,503.48 ",
Nottinghamshire fire and Rescue Service,103483,Risual Limited,Risual Limited,Management & Support Services,5,202409,16/11/2023,P6,9109431,"-1,862.48 ","1,862.48 ",4301,Phones - Landline,2097,ICT Service Operations,"1,552.07 ",
Nottinghamshire fire and Rescue Service,103092,Daisy Corporate Services Trading Limited,Daisy Corporate Services Trading Limited,Management & Support Services,1,202409,01/12/2023,P6,9109433,"-1,825.04 ","1,825.04 ",4301,Phones - Landline,2096,ICT Service Transformation,"1,520.87 ",
Nottinghamshire fire and Rescue Service,103426,OV Limited,OV Limited,Management & Support Services,5,202409,30/11/2023,P6,9109434,-500.00 ,500.00 ,4302,Phones - Mobiles,2097,ICT Service Operations,500.00 ,
Nottinghamshire fire and Rescue Service,101802,EE,EE,Management & Support Services,1,202409,01/11/2023,P6,9109515,"-3,975.41 ","3,975.41 ",4302,Phones - Mobiles,2097,ICT Service Operations,"3,312.84 ",
Nottinghamshire fire and Rescue Service,101802,EE,EE,Management & Support Services,1,202409,01/12/2023,P6,9109550,"-3,973.55 ","3,973.55 ",4302,Phones - Mobiles,2097,ICT Service Operations,"3,311.29 ",
Nottinghamshire fire and Rescue Service,103887,PageOne Communications Limited - Part Of Capita plc,PageOne Communications Limited - Part Of Capita plc,Management & Support Services,5,202409,08/12/2023,P6,9109450,"-5,794.80 ","5,794.80 ",4303,Pagers,2097,ICT Service Operations,19.00 ,
Nottinghamshire fire and Rescue Service,103887,PageOne Communications Limited - Part Of Capita plc,PageOne Communications Limited - Part Of Capita plc,Management & Support Services,5,202409,08/12/2023,P6,9109450,"-5,794.80 ","5,794.80 ",4303,Pagers,2097,ICT Service Operations,"4,810.00 ",
Nottinghamshire fire and Rescue Service,103887,PageOne Communications Limited - Part Of Capita plc,PageOne Communications Limited - Part Of Capita plc,Management & Support Services,5,202409,20/12/2023,P6,9109606,"-2,118.00 ","2,118.00 ",4303,Pagers,2097,ICT Service Operations,"1,765.00 ",
Nottinghamshire fire and Rescue Service,102495,Rosenbauer UK Plc,Rosenbauer UK Plc,Management & Support Services,1,202409,30/11/2023,P6,9109426,-905.60 ,905.60 ,4401,Protective Clothing,2086,Procurement,754.67 ,
Nottinghamshire fire and Rescue Service,101865,R S Components Limited,R S Components Limited,Management & Support Services,1,202409,13/12/2023,P6,9109545,-537.02 ,537.02 ,4401,Protective Clothing,2086,Procurement,447.52 ,
Nottinghamshire fire and Rescue Service,103678,Fitness Warehouse Limited t/a Gym Gear,Fitness Warehouse Limited t/a Gym Gear,Management & Support Services,5,202409,11/12/2023,P6,9109561,"-3,768.00 ","3,768.00 ",4510,Fitness Equipment,2061,Occupational Health & Fitness,145.00 ,
Nottinghamshire fire and Rescue Service,103678,Fitness Warehouse Limited t/a Gym Gear,Fitness Warehouse Limited t/a Gym Gear,Management & Support Services,5,202409,11/12/2023,P6,9109561,"-3,768.00 ","3,768.00 ",4510,Fitness Equipment,2061,Occupational Health & Fitness,"2,995.00 ",
Nottinghamshire fire and Rescue Service,101656,Amplivox Ltd,Amplivox Ltd,Management & Support Services,1,202409,30/11/2023,P6,9109388,-474.00 ,474.00 ,4512,Medical Equipment Maintenance,2061,Occupational Health & Fitness,395.00 ,
Nottinghamshire fire and Rescue Service,101656,Amplivox Ltd,Amplivox Ltd,Management & Support Services,1,202409,11/12/2023,P6,9109559,-258.00 ,258.00 ,4512,Medical Equipment Maintenance,2061,Occupational Health & Fitness,215.00 ,
Nottinghamshire fire and Rescue Service,104273,Fine Foods Exchange,Fine Foods Exchange,Management & Support Services,5,202409,14/12/2023,P6,9109560,-918.00 ,918.00 ,4523,Catering/Food & Beverages,2059,Corporate Training,765.00 ,
Nottinghamshire fire and Rescue Service,101851,Complete Business Solutions Group Ltd,Complete Business Solutions Group Ltd,Fire Service Emergency Planning & Civil Defence,1,202409,09/10/2023,P6,9109371,"-2,138.40 ","2,138.40 ",4532,Stationery,2009,Resiliance & Emergency Planning,"1,782.00 ",
Nottinghamshire fire and Rescue Service,104064,Redbrick Print Solutions LLP,Redbrick Print Solutions LLP,Management & Support Services,5,202409,21/11/2023,P6,9109328,-738.00 ,738.00 ,4534,Carriage and Packaging,2093,Command Suite,20.00 ,
Nottinghamshire fire and Rescue Service,104064,Redbrick Print Solutions LLP,Redbrick Print Solutions LLP,Management & Support Services,5,202409,21/11/2023,P6,9109329,-444.00 ,444.00 ,4534,Carriage and Packaging,2093,Command Suite,20.00 ,
Nottinghamshire fire and Rescue Service,102078,Thomas Kneale & Co Ltd,Thomas Kneale & Co Ltd,Management & Support Services,1,202409,28/11/2023,P6,9109334,-904.20 ,904.20 ,4534,Carriage and Packaging,9999,Default,24.50 ,
Nottinghamshire fire and Rescue Service,102553,Marlow Ropes Limited,Marlow Ropes Limited,Management & Support Services,1,202409,04/12/2023,P6,9109401,-381.34 ,381.34 ,4534,Carriage and Packaging,9999,Default,15.00 ,
Nottinghamshire fire and Rescue Service,102220,L W Vass Limited,L W Vass Limited,Management & Support Services,1,202409,06/12/2023,P6,9109448,-378.00 ,378.00 ,4534,Carriage and Packaging,9999,Default,15.00 ,
Nottinghamshire fire and Rescue Service,101994,Peli Products (Uk) Ltd,Peli Products (Uk) Ltd,Management & Support Services,1,202409,05/12/2023,P6,9109464,-454.50 ,454.50 ,4534,Carriage and Packaging,9999,Default,9.50 ,
Nottinghamshire fire and Rescue Service,100468,Specialised Canvas Group,Specialised Canvas Group,Management & Support Services,1,202409,12/12/2023,P6,9109533,-407.95 ,407.95 ,4534,Carriage and Packaging,2086,Procurement,15.61 ,
Nottinghamshire fire and Rescue Service,102618,FIRMIN & SONS PLC,FIRMIN & SONS PLC,Management & Support Services,1,202409,08/12/2023,P6,9109569,"-1,128.00 ","1,128.00 ",4534,Carriage and Packaging,2086,Procurement,15.00 ,
Nottinghamshire fire and Rescue Service,102306,Northern Diver (International) Ltd,Northern Diver (International) Ltd,Management & Support Services,1,202409,11/12/2023,P6,9109618,-639.00 ,639.00 ,4534,Carriage and Packaging,2086,Procurement,10.50 ,
Nottinghamshire fire and Rescue Service,104232,Dr Shaun Austin Ltd,Dr Shaun Austin Ltd,Management & Support Services,10,202409,25/11/2023,P6,9109324,-969.85 ,969.85 ,4552,Occupational Health Costs,2061,Occupational Health & Fitness,9.85 ,
Nottinghamshire fire and Rescue Service,104232,Dr Shaun Austin Ltd,Dr Shaun Austin Ltd,Management & Support Services,10,202409,25/11/2023,P6,9109324,-969.85 ,969.85 ,4552,Occupational Health Costs,2061,Occupational Health & Fitness,960.00 ,
Nottinghamshire fire and Rescue Service,102033,Valuation Office Agency,Valuation Office Agency,Management & Support Services,1,202409,30/11/2023,P6,9109323,"-1,800.00 ","1,800.00 ",4554,Consultancy Fees - Non Estates Related,2081,Finance,"1,500.00 ",
Nottinghamshire fire and Rescue Service,103257,Midland HR,Midland HR,Management & Support Services,5,202409,27/11/2023,P6,9109471,"-1,425.01 ","1,425.01 ",4554,Consultancy Fees - Non Estates Related,2058,HR Support,"1,187.51 ",
Nottinghamshire fire and Rescue Service,103582,Softcat Limited,Softcat Limited,Management & Support Services,5,202409,27/11/2023,P6,9109472,-480.00 ,480.00 ,4554,Consultancy Fees - Non Estates Related,2058,HR Support,400.00 ,
Nottinghamshire fire and Rescue Service,104248,RealWorldHR Limited,RealWorldHR Limited,Management & Support Services,5,202409,18/10/2023,P6,9109521,"-1,799.28 ","1,799.28 ",4554,Consultancy Fees - Non Estates Related,2049,Professional Support,"1,499.40 ",
Nottinghamshire fire and Rescue Service,101000,C F S Messing Account Stockhill,C F S Messing Account Stockhill,Operational Responses,8,202409,31/10/2023,P6,9109418,-287.50 ,287.50 ,4560,Subsistence,1020,Stockhill,65.50 ,
Nottinghamshire fire and Rescue Service,100019,Nuffield Sailing Centre,Nuffield Sailing Centre,Management & Support Services,1,202409,30/11/2023,P6,9109353,-880.00 ,880.00 ,4561,Overnight Accomodation,2059,Corporate Training,840.00 ,
Nottinghamshire fire and Rescue Service,101745,Networking Women In The Fire Service,Networking Women In The Fire Service,Management & Support Services,1,202409,20/11/2023,P6,9109360,-500.00 ,500.00 ,4581,Subscriptions,2054,Equalities Team,500.00 ,
Nottinghamshire fire and Rescue Service,100093,National Fire Sprinkler Network (Nfsn),National Fire Sprinkler Network (Nfsn),Management & Support Services,1,202409,01/12/2023,P6,9109519,-250.00 ,250.00 ,4581,Subscriptions,2081,Finance,250.00 ,
Nottinghamshire fire and Rescue Service,102080,Lexis Nexis,Lexis Nexis,Management & Support Services,1,202409,20/11/2023,P6,9109333,"-2,004.00 ","2,004.00 ",4582,Reference Books and Publications,2049,Professional Support,"1,670.00 ",
Nottinghamshire fire and Rescue Service,104064,Redbrick Print Solutions LLP,Redbrick Print Solutions LLP,Management & Support Services,5,202409,21/11/2023,P6,9109328,-738.00 ,738.00 ,4583,Marketing and Publicity,2093,Command Suite,595.00 ,
Nottinghamshire fire and Rescue Service,104064,Redbrick Print Solutions LLP,Redbrick Print Solutions LLP,Management & Support Services,5,202409,21/11/2023,P6,9109329,-444.00 ,444.00 ,4583,Marketing and Publicity,2093,Command Suite,350.00 ,
Nottinghamshire fire and Rescue Service,104064,Redbrick Print Solutions LLP,Redbrick Print Solutions LLP,Management & Support Services,5,202409,15/11/2023,P6,9109331,-325.00 ,325.00 ,4583,Marketing and Publicity,2051,Corporate Communications,325.00 ,
Nottinghamshire fire and Rescue Service,104064,Redbrick Print Solutions LLP,Redbrick Print Solutions LLP,Management & Support Services,5,202409,23/11/2023,P6,9109340,-592.20 ,592.20 ,4583,Marketing and Publicity,2051,Corporate Communications,493.50 ,
Nottinghamshire fire and Rescue Service,101851,Complete Business Solutions Group Ltd,Complete Business Solutions Group Ltd,Management & Support Services,1,202409,18/10/2023,P6,9109397,-464.00 ,464.00 ,4583,Marketing and Publicity,2068,Prevention,464.00 ,
Nottinghamshire fire and Rescue Service,102532,Safequip Ltd,Safequip Ltd,Management & Support Services,1,202409,22/11/2023,P6,9109355,-398.40 ,398.40 ,4594,Training/ Teaching Equipment,2059,Corporate Training,332.00 ,
Nottinghamshire fire and Rescue Service,104276,Motors in Motion Limited,Motors in Motion Limited,Operational Responses,5,202409,01/12/2023,P6,9109356,"-1,152.00 ","1,152.00 ",4594,Training/ Teaching Equipment,1001,Mansfield,320.00 ,
Nottinghamshire fire and Rescue Service,104276,Motors in Motion Limited,Motors in Motion Limited,Operational Responses,5,202409,01/12/2023,P6,9109356,"-1,152.00 ","1,152.00 ",4594,Training/ Teaching Equipment,1014,Southwell,320.00 ,
Nottinghamshire fire and Rescue Service,104276,Motors in Motion Limited,Motors in Motion Limited,Operational Responses,5,202409,01/12/2023,P6,9109356,"-1,152.00 ","1,152.00 ",4594,Training/ Teaching Equipment,1016,Newark,320.00 ,
Nottinghamshire fire and Rescue Service,104310,GPS Lifting Ltd,GPS Lifting Ltd,Management & Support Services,5,202409,16/10/2023,P6,9109414,"-2,508.00 ","2,508.00 ",4594,Training/ Teaching Equipment,2059,Corporate Training,"2,090.00 ",
Nottinghamshire fire and Rescue Service,102547,Firefighter Protection Uk,Firefighter Protection Uk,Management & Support Services,1,202409,29/11/2023,P6,9109481,-270.60 ,270.60 ,4594,Training/ Teaching Equipment,2059,Corporate Training,225.50 ,
Nottinghamshire fire and Rescue Service,100467,Kingsfield Computer Products Ltd,Kingsfield Computer Products Ltd,Operational Responses,1,202409,07/12/2023,P6,9109482,"-2,304.00 ","2,304.00 ",4594,Training/ Teaching Equipment,2074,Operational Training,"1,920.00 ",
Nottinghamshire fire and Rescue Service,101851,Complete Business Solutions Group Ltd,Complete Business Solutions Group Ltd,Management & Support Services,1,202409,12/12/2023,P6,9109598,735.06 ,-735.06 ,4611,Stock Adjustments,2086,Procurement,-612.55 ,
Nottinghamshire fire and Rescue Service,100055,Nottingham City Council,Nottingham City Council,Management & Support Services,4,202409,29/11/2023,P6,9109644,"-20,000.00 ","20,000.00 ",4621,Contribution to Partnership Working,2068,Prevention,"20,000.00 ",
Nottinghamshire fire and Rescue Service,103981,Joseph Gleave and Son Limited -Joseph Gleave and Son (Holdings) Limited,Joseph Gleave and Son Limited -Joseph Gleave and Son (Holdings) Limited,Management & Support Services,5,202409,27/10/2023,P6,9109319,-520.61 ,520.61 ,B314,Control Account - GRN Not Invoiced,9999,Default,433.84 ,
Nottinghamshire fire and Rescue Service,103981,Joseph Gleave and Son Limited -Joseph Gleave and Son (Holdings) Limited,Joseph Gleave and Son Limited -Joseph Gleave and Son (Holdings) Limited,Management & Support Services,5,202409,27/10/2023,P6,9109322,-415.62 ,415.62 ,B314,Control Account - GRN Not Invoiced,9999,Default,346.35 ,
Nottinghamshire fire and Rescue Service,102078,Thomas Kneale & Co Ltd,Thomas Kneale & Co Ltd,Management & Support Services,1,202409,28/11/2023,P6,9109334,-904.20 ,904.20 ,B314,Control Account - GRN Not Invoiced,9999,Default,729.00 ,
Nottinghamshire fire and Rescue Service,102101,H-Squared,H-Squared,Management & Support Services,1,202409,29/11/2023,P6,9109339,-339.43 ,339.43 ,B314,Control Account - GRN Not Invoiced,9999,Default,282.85 ,
Nottinghamshire fire and Rescue Service,104233,Aero Healthcare Limited,Aero Healthcare Limited,Management & Support Services,5,202409,27/11/2023,P6,9109362,-280.26 ,280.26 ,B314,Control Account - GRN Not Invoiced,9999,Default,233.55 ,
Nottinghamshire fire and Rescue Service,102553,Marlow Ropes Limited,Marlow Ropes Limited,Management & Support Services,1,202409,04/12/2023,P6,9109401,-381.34 ,381.34 ,B314,Control Account - GRN Not Invoiced,9999,Default,302.78 ,
Nottinghamshire fire and Rescue Service,102190,Dot Promotional Clothing,Dot Promotional Clothing,Management & Support Services,1,202409,07/12/2023,P6,9109439,-783.00 ,783.00 ,B314,Control Account - GRN Not Invoiced,9999,Default,652.50 ,
Nottinghamshire fire and Rescue Service,100114,Goliath Footwear Ltd,Goliath Footwear Ltd,Management & Support Services,1,202409,07/12/2023,P6,9109440,-266.16 ,266.16 ,B314,Control Account - GRN Not Invoiced,9999,Default,221.80 ,
Nottinghamshire fire and Rescue Service,103981,Joseph Gleave and Son Limited -Joseph Gleave and Son (Holdings) Limited,Joseph Gleave and Son Limited -Joseph Gleave and Son (Holdings) Limited,Management & Support Services,5,202409,08/12/2023,P6,9109444,-407.70 ,407.70 ,B314,Control Account - GRN Not Invoiced,9999,Default,407.70 ,
Nottinghamshire fire and Rescue Service,103981,Joseph Gleave and Son Limited -Joseph Gleave and Son (Holdings) Limited,Joseph Gleave and Son Limited -Joseph Gleave and Son (Holdings) Limited,Management & Support Services,5,202409,08/12/2023,P6,9109445,-366.42 ,366.42 ,B314,Control Account - GRN Not Invoiced,9999,Default,305.35 ,
Nottinghamshire fire and Rescue Service,103981,Joseph Gleave and Son Limited -Joseph Gleave and Son (Holdings) Limited,Joseph Gleave and Son Limited -Joseph Gleave and Son (Holdings) Limited,Management & Support Services,5,202409,08/12/2023,P6,9109447,-874.80 ,874.80 ,B314,Control Account - GRN Not Invoiced,9999,Default,729.00 ,
Nottinghamshire fire and Rescue Service,102220,L W Vass Limited,L W Vass Limited,Management & Support Services,1,202409,06/12/2023,P6,9109448,-378.00 ,378.00 ,B314,Control Account - GRN Not Invoiced,9999,Default,300.00 ,
Nottinghamshire fire and Rescue Service,103433,First Products (Sussex) Limited,First Products (Sussex) Limited,Management & Support Services,5,202409,12/10/2023,P6,9109449,"-1,069.20 ","1,069.20 ",B314,Control Account - GRN Not Invoiced,9999,Default,891.00 ,
Nottinghamshire fire and Rescue Service,100299,FireAngel Safety Technology Limited,FireAngel Safety Technology Limited,Management & Support Services,1,202409,05/12/2023,P6,9109453,"-13,433.52 ","13,433.52 ",B314,Control Account - GRN Not Invoiced,9999,Default,"11,194.60 ",
Nottinghamshire fire and Rescue Service,101994,Peli Products (Uk) Ltd,Peli Products (Uk) Ltd,Management & Support Services,1,202409,05/12/2023,P6,9109464,-454.50 ,454.50 ,B314,Control Account - GRN Not Invoiced,9999,Default,369.25 ,
Nottinghamshire fire and Rescue Service,102101,H-Squared,H-Squared,Management & Support Services,1,202409,05/12/2023,P6,9109466,-278.40 ,278.40 ,B314,Control Account - GRN Not Invoiced,9999,Default,232.00 ,
Nottinghamshire fire and Rescue Service,102376,Bristol Uniforms Limited,Bristol Uniforms Limited,Management & Support Services,1,202409,08/12/2023,P6,9109467,"-3,820.44 ","3,820.44 ",B314,Control Account - GRN Not Invoiced,9999,Default,"3,183.70 ",
Nottinghamshire fire and Rescue Service,102376,Bristol Uniforms Limited,Bristol Uniforms Limited,Management & Support Services,1,202409,08/12/2023,P6,9109499,"-1,356.07 ","1,356.07 ",B314,Control Account - GRN Not Invoiced,9999,Default,"1,130.06 ",
Nottinghamshire fire and Rescue Service,102376,Bristol Uniforms Limited,Bristol Uniforms Limited,Management & Support Services,1,202409,07/12/2023,P6,9109500,"-1,267.87 ","1,267.87 ",B314,Control Account - GRN Not Invoiced,9999,Default,"1,056.56 ",
Nottinghamshire fire and Rescue Service,102376,Bristol Uniforms Limited,Bristol Uniforms Limited,Management & Support Services,1,202409,11/12/2023,P6,9109511,-481.75 ,481.75 ,B314,Control Account - GRN Not Invoiced,9999,Default,401.46 ,
Nottinghamshire fire and Rescue Service,100468,Specialised Canvas Group,Specialised Canvas Group,Management & Support Services,1,202409,12/12/2023,P6,9109533,-407.95 ,407.95 ,B314,Control Account - GRN Not Invoiced,9999,Default,324.35 ,
Nottinghamshire fire and Rescue Service,100357,Eastern Shires Purchasing Organisation,Eastern Shires Purchasing Organisation,Management & Support Services,1,202409,12/12/2023,P6,9109534,-571.86 ,571.86 ,B314,Control Account - GRN Not Invoiced,9999,Default,476.55 ,
Nottinghamshire fire and Rescue Service,100357,Eastern Shires Purchasing Organisation,Eastern Shires Purchasing Organisation,Management & Support Services,1,202409,12/12/2023,P6,9109535,"-1,369.14 ","1,369.14 ",B314,Control Account - GRN Not Invoiced,9999,Default,"1,140.95 ",
Nottinghamshire fire and Rescue Service,100299,FireAngel Safety Technology Limited,FireAngel Safety Technology Limited,Management & Support Services,1,202409,08/12/2023,P6,9109541,"-3,588.00 ","3,588.00 ",B314,Control Account - GRN Not Invoiced,9999,Default,"2,990.00 ",
Nottinghamshire fire and Rescue Service,102864,William Sugden & sons Limited,William Sugden & sons Limited,Management & Support Services,5,202409,13/12/2023,P6,9109542,-622.20 ,622.20 ,B314,Control Account - GRN Not Invoiced,9999,Default,518.50 ,
Nottinghamshire fire and Rescue Service,102864,William Sugden & sons Limited,William Sugden & sons Limited,Management & Support Services,5,202409,13/12/2023,P6,9109553,-366.00 ,366.00 ,B314,Control Account - GRN Not Invoiced,9999,Default,305.00 ,
Nottinghamshire fire and Rescue Service,102618,FIRMIN & SONS PLC,FIRMIN & SONS PLC,Management & Support Services,1,202409,08/12/2023,P6,9109569,"-1,128.00 ","1,128.00 ",B314,Control Account - GRN Not Invoiced,9999,Default,925.00 ,
Nottinghamshire fire and Rescue Service,103981,Joseph Gleave and Son Limited -Joseph Gleave and Son (Holdings) Limited,Joseph Gleave and Son Limited -Joseph Gleave and Son (Holdings) Limited,Management & Support Services,5,202409,15/12/2023,P6,9109600,-608.16 ,608.16 ,B314,Control Account - GRN Not Invoiced,9999,Default,506.80 ,
Nottinghamshire fire and Rescue Service,103981,Joseph Gleave and Son Limited -Joseph Gleave and Son (Holdings) Limited,Joseph Gleave and Son Limited -Joseph Gleave and Son (Holdings) Limited,Management & Support Services,5,202409,15/12/2023,P6,9109601,"-2,221.93 ","2,221.93 ",B314,Control Account - GRN Not Invoiced,9999,Default,"1,851.61 ",
Nottinghamshire fire and Rescue Service,103981,Joseph Gleave and Son Limited -Joseph Gleave and Son (Holdings) Limited,Joseph Gleave and Son Limited -Joseph Gleave and Son (Holdings) Limited,Management & Support Services,5,202409,15/12/2023,P6,9109602,-324.91 ,324.91 ,B314,Control Account - GRN Not Invoiced,9999,Default,270.76 ,
Nottinghamshire fire and Rescue Service,102376,Bristol Uniforms Limited,Bristol Uniforms Limited,Management & Support Services,1,202409,18/12/2023,P6,9109604,-481.75 ,481.75 ,B314,Control Account - GRN Not Invoiced,9999,Default,401.46 ,
Nottinghamshire fire and Rescue Service,102190,Dot Promotional Clothing,Dot Promotional Clothing,Management & Support Services,1,202409,14/12/2023,P6,9109605,-380.88 ,380.88 ,B314,Control Account - GRN Not Invoiced,9999,Default,317.40 ,
Nottinghamshire fire and Rescue Service,102306,Northern Diver (International) Ltd,Northern Diver (International) Ltd,Management & Support Services,1,202409,11/12/2023,P6,9109618,-639.00 ,639.00 ,B314,Control Account - GRN Not Invoiced,9999,Default,522.00 ,
Nottinghamshire fire and Rescue Service,102376,Bristol Uniforms Limited,Bristol Uniforms Limited,Management & Support Services,1,202409,13/12/2023,P6,9109620,"-1,559.86 ","1,559.86 ",B314,Control Account - GRN Not Invoiced,9999,Default,"1,299.88 ",
Nottinghamshire fire and Rescue Service,102190,Dot Promotional Clothing,Dot Promotional Clothing,Management & Support Services,1,202409,14/12/2023,P6,9109621,-380.88 ,380.88 ,B314,Control Account - GRN Not Invoiced,9999,Default,317.40 ,
Nottinghamshire fire and Rescue Service,102376,Bristol Uniforms Limited,Bristol Uniforms Limited,Management & Support Services,1,202409,11/12/2023,P6,9109622,-570.48 ,570.48 ,B314,Control Account - GRN Not Invoiced,9999,Default,475.40 ,
Nottinghamshire fire and Rescue Service,102376,Bristol Uniforms Limited,Bristol Uniforms Limited,Management & Support Services,1,202409,11/12/2023,P6,9109623,"-1,576.39 ","1,576.39 ",B314,Control Account - GRN Not Invoiced,9999,Default,"1,313.66 ",
Nottinghamshire fire and Rescue Service,102376,Bristol Uniforms Limited,Bristol Uniforms Limited,Management & Support Services,1,202409,13/12/2023,P6,9109625,-904.85 ,904.85 ,B314,Control Account - GRN Not Invoiced,9999,Default,754.04 ,
Nottinghamshire fire and Rescue Service,102376,Bristol Uniforms Limited,Bristol Uniforms Limited,Management & Support Services,1,202409,11/12/2023,P6,9109627,-452.42 ,452.42 ,B314,Control Account - GRN Not Invoiced,9999,Default,377.02 ,
Nottinghamshire fire and Rescue Service,101100,Angloco Limited,Angloco Limited,Management & Support Services,1,202409,11/12/2023,P6,9109568,"-170,607.04 ","170,607.04 ",C001,Vehicle Purchase,4000,Rescue Pump Replacement,"142,172.53 ",
Nottinghamshire fire and Rescue Service,103443,Terberg DTS UK Limited,Terberg DTS UK Limited,Management & Support Services,5,202409,21/12/2023,P6,9109645,"-4,464.00 ","4,464.00 ",C001,Vehicle Purchase,4001,Light Vehicle Replacement,"3,720.00 ",
Nottinghamshire fire and Rescue Service,101812,A B Waste Disposal Ltd,A B Waste Disposal Ltd,Management & Support Services,1,202409,01/12/2023,P6,9109479,-282.00 ,282.00 ,C101,Building Works,4101,Non Operational Buildings Improvements & Refurbishments,235.00 ,
Nottinghamshire fire and Rescue Service,104279,KFT Fire Trainer GmbH,KFT Fire Trainer GmbH,Management & Support Services,5,202409,30/11/2023,P6,9109532,"-106,800.00 ","106,800.00 ",C113,Fixtures and Fittings,4100,Fire Station Improvement & Refurbishments,"89,000.00 ",
Nottinghamshire fire and Rescue Service,104229,YMD Boon Ltd,YMD Boon Ltd,Management & Support Services,5,202409,30/11/2023,P6,9109512,"-4,474.20 ","4,474.20 ",C154,Professional Fees - Design,4100,Fire Station Improvement & Refurbishments,"3,728.50 ",
Nottinghamshire fire and Rescue Service,104229,YMD Boon Ltd,YMD Boon Ltd,Management & Support Services,5,202409,14/12/2023,P6,9109557,"-8,948.40 ","8,948.40 ",C154,Professional Fees - Design,4100,Fire Station Improvement & Refurbishments,"7,457.00 ",
Nottinghamshire fire and Rescue Service,101712,Browne Jacobson LLP,Browne Jacobson LLP,Management & Support Services,1,202409,29/11/2023,P6,9109349,-949.44 ,949.44 ,C157,Professional Fees - Legal,4102,Strategic New Build Projects,791.20 ,
Nottinghamshire fire and Rescue Service,103483,Risual Limited,Risual Limited,Management & Support Services,5,202409,30/11/2023,P6,9109370,"-1,204.27 ","1,204.27 ",C200,Hardware,4300,ICT Capital Programme,"1,003.56 ",
Nottinghamshire fire and Rescue Service,103483,Risual Limited,Risual Limited,Management & Support Services,5,202409,31/10/2023,P6,9109435,"-1,160.89 ","1,160.89 ",C200,Hardware,4300,ICT Capital Programme,967.41 ,
Nottinghamshire fire and Rescue Service,100467,Kingsfield Computer Products Ltd,Kingsfield Computer Products Ltd,Management & Support Services,1,202409,12/12/2023,P6,9109494,"-1,710.00 ","1,710.00 ",C200,Hardware,4300,ICT Capital Programme,"1,425.00 ",
Nottinghamshire fire and Rescue Service,103483,Risual Limited,Risual Limited,Management & Support Services,5,202409,30/11/2023,P6,9109325,"-1,140.00 ","1,140.00 ",C202,Consultancy and Services,4300,ICT Capital Programme,950.00 ,
Nottinghamshire fire and Rescue Service,103582,Softcat Limited,Softcat Limited,Management & Support Services,5,202409,13/12/2023,P6,9109570,"-2,640.00 ","2,640.00 ",C202,Consultancy and Services,4300,ICT Capital Programme,"2,200.00 ",
,***Note:,,,,,,,,,,,,,,,
,"***The report shows the payment in its original form. This means disaggregating many invoices into individual component payments many of which will be less than £250 in their own right. This explains why you will see many of the amounts showing less than £250. They were, however, paid as part of an invoice of £250 or more.

**** The Invoice date is the date issued on the invoice. This date may fall out of the date range for the report. In most cases this is due to the invoice being received  late.",,,,,,,,,,,,,,,,